Workbook

Sheet Guidance
B1: Joiner Tool
B5: Welcome to the Joiner Tool – Civil Service Pension Schemes - classic, classic plus, premium, alpha

Sheet Pensions Questionnaire
B1: =strToolName -> Joiner Tool
Y3: Top section error count | Z3: =SUM(Z7:Z52) -> 7
B4: Stage 1 - Member's details | S4: Display and Look Up data | U4: uiErrorCount | Y4: erro Count | Z4: =SUM(Z7:Z137) -> 7 | AA4: uiErrorCount
A5: hide | I5: Error column | J5: Message column | S5: Question Code | T5: Required field? | U5: Result Name or reference name | V5: Result | W5: Display if dependent on other values? | X5: Result Found | Y5: Error Message | Z5: ErrorCount | AA5: Notes
B6: You should use this tool for new appointments that will commence on, or after, 1 April 2015. This tool will tell you the correct scheme (including the new scheme, alpha) to enrol the employee into to ensure they receive the relevant starter pack and information. Please complete the stages in numerical order. Stages will expand and collapse as you work your way through the form.
V7: =IF(S7<>"",E7,"") ->  | Z7: =IF(Y7<>"",1,0) -> 0
D8: Name : | I8: =IF(tabErrorMessage<>"",tabErrorMessage,"") -> Enter Value | T8: y | U8: uiName | V8: =IF(S8<>"",E8,"") ->  | W8: TRUE | Y8: =IF(AND(E8="",W8=TRUE),"Enter Value","") -> Enter Value | Z8: =IF(Y8<>"",1,0) -> 1
Z9: 0
D10: National Insurance number : | I10: =IF(tabErrorMessage<>"",tabErrorMessage,"") -> Enter Value | T10: y | U10: uiNINO | W10: TRUE | Y10: =IF(AND(E10="",W10=TRUE),"Enter Value","") -> Enter Value | Z10: 1
Z11: 0
D12: Date of birth : | I12: =IF(tabErrorMessage<>"",tabErrorMessage,"") -> Enter Value | T12: y | U12: uiDOB | W12: TRUE | Y12: =IF(AND(E12="",W12=TRUE),"Enter Value","") -> Enter Value | Z12: 1 | AA12: Data gathering as per original
Z13: 0
D14: Start date of new period of service : | I14: =IF(tabErrorMessage<>"",tabErrorMessage,"") -> Enter Value | T14: y | U14: uiStartDate | W14: TRUE | Y14: =IF(AND(E14="",W14=TRUE),"Enter Value","") -> Enter Value | Z14: 1
W15: =IF(U15<>"",F15,"") ->  | Z15: 0
D16: Gender : | I16: =IF(tabErrorMessage<>"",tabErrorMessage,"") -> Enter Value | S16: =62+65-15 -> 112 | U16: uiSex | V16: =IF(S16<>"",E16,"") -> 0 | W16: TRUE | Y16: =IF(AND(E16="",W16=TRUE),"Enter Value","") -> Enter Value | Z16: 1
Z17: 0
B18: Member's State Pension age based on current legislation at date of calculation: | E18: =ressSPA ->  | S18: =YEAR((DATE(YEAR(uiDOB)+65,MONTH(uiDOB),DAY(uiDOB))))-YEAR(DATE(2012,1,1)) -> -48 | V18: =IF(S18<>"",E18,"") ->  | W18: TRUE | Z18: 0
Z19: 0
B20: Stage 2 - Member's Public and Civil Service pension history | Z20: 0
B21: =HLOOKUP(S21,tabQuestionCode,2,0) -> Has the member ever been a member of the Civil Service Pension arrangements? | I21: =IF(tabErrorMessage<>"",tabErrorMessage,"") -> Enter Value | S21: A0 | T21: y | U21: uiPrevMemCS | V21: =IF(S21<>"",E21,"") -> 0 | W21: TRUE | Y21: =IF(AND(W21=FALSE,E21<>""),"Error, remove value",IF(AND(E21="",W21=TRUE),"Enter Value","")) -> Enter Value | Z21: 1
B22: =HLOOKUP(S22,tabQuestionCode,2,0) -> Has the member ever been a member of the public service pension arrangements? | I22: =IF(tabErrorMessage<>"",tabErrorMessage,"") -> Enter Value | J22: http://www.legislation.gov.uk/ukpga/2013/25/schedule/1 | S22: A1 | T22: y | U22: uiPrevMemPS | V22: =IF(S22<>"",E22,"") -> 0 | W22: TRUE | X22: Only part of logic if CSP =N | Y22: =IF(AND(W22=FALSE,E22<>""),"Error, remove value",IF(AND(E22="",W22=TRUE),"Enter Value","")) -> Enter Value | Z22: 1
B23: Was the Civil Service Pension Scheme 'by analogy'? | I23: =IF(tabErrorMessage<>"",tabErrorMessage,"") ->  | J23: http://www.civilservicepensionscheme.org.uk/about-us/by-analogy-and-analogous-schemes/ | U23: uiByAnalogy | W23: =IF(uiPrevMemCS="Y",IF(bfound,"Found",TRUE),FALSE) -> FALSE | Y23: =IF(AND(W23=FALSE,E23<>""),"Error, remove value",IF(AND(E23="",W23=TRUE),"Enter Value","")) ->  | Z23: 0
B24: =IF(uiByAnalogy="Y","What was the by anology equivalent scheme?","What Civil Service Pension Scheme was the member in?") -> What Civil Service Pension Scheme was the member in? | I24: =IF(tabErrorMessage<>"",tabErrorMessage,"") ->  | U24: uiCSScheme | V24: =IF(S24<>"",E24,"") ->  | W24: =IF(uiPrevMemCS="Y",IF(bfound,"Found",TRUE),FALSE) -> FALSE | Y24: =IF(AND(W24=FALSE,E24<>""),"Error, remove value",IF(AND(E24="",W24=TRUE),"Enter Value","")) ->  | Z24: 0
B25: The member's previous Civil Service Scheme has a pension age of : | E25: =resPrevSchemeNPACS ->  | W25: =IF(uiPrevMemCS="Y",IF(bfound,"Found",TRUE),FALSE) -> FALSE | Z25: 0
B26: Who was the member's most recent employer when they were in the Civil Service Pension Scheme? Enter as many details as required. | U26: uiCSEmployer | V26: =IF(S26<>"",E26,"") ->  | W26: =IF(uiPrevMemCS="Y",IF(bfound,"Found",TRUE),FALSE) -> FALSE | Z26: 0 | AA26: Data gathering as per original
B27: Who was the member's most recent employer when they were in the public service pension scheme? Enter as many details as required. | E27: ENTER PUBLIC SERVICE EMPLOYER DETAILS | U27: uiPSEmployer | V27: =IF(S27<>"",E27,"") ->  | W27: =IF(uiPrevMemPS="Y",IF(bfound,"Found",TRUE),FALSE) -> FALSE | Z27: 0 | AA27: Data gathering as per original
B28: When the member was in partnership, which provider did they choose? Enter as many details as required. | E28: ENTER PROVIDER DETAILS | I28: =IF(tabErrorMessage<>"",tabErrorMessage,"") ->  | U28: uiPartnership | V28: =IF(S28<>"",E28,"") ->  | W28: =IF(OR(uiCSScheme=INDEX(tabSchemeList,6),uiCSScheme=INDEX(tabSchemeList,8)),IF(bfound,"Found",TRUE),FALSE) -> FALSE | Z28: 0 | AA28: Data gathering as per original
Z29: 0
B30: Stage 3 - Public and Civil Service pension history | Z30: 0
B31: As the member has previously been a member of a Civil Service or public service pension scheme, they may be entitled to re-join the Part 1 section of the PCSPS. Whether a member joins the PCSPS or alpha depends on their pension service history and when they were in the Civil Service and/or public service pension schemes. Enter the member's pension service history in the table below. This will end on the day the member is to start their new position with a Civil Service Pension Scheme employer. The first service period should include the date 1/4/2007 or if the member started work later than this, their first period of employment. | W31: =uiServHistTableShow -> FALSE | Z31: 0
B32: Important Note Previous Public Service Note | U32: uiShowPSNote | W32: =IF(AND(resPrevSchemeAlpha="N",OR(PrevMemPS="Y")),IF(bfound,"Found",TRUE),FALSE) -> FALSE | Z32: 0
C33: The tool should not be used if the member has had any of the following : 1 - Transfer Out 2 - Benefit put in to payment 3 - Refunded 4 - Were not offered some degree of tapered or full protection in previous Public Sector Employment. 5 - Were offered some degree of tapered or full protection and in previous Public Sector Employment, and did not relinquish that protection. | W33: =uiShowPSNote -> FALSE | Z33: 0
B34: Confirm that the member is applicable to continue, (Y) confirms the member has not had any of the above, (N) confirms the member's public service pension has had one of the above. | I34: =IF(tabErrorMessage<>"",tabErrorMessage,"") ->  | U34: uiPSConfirmation | V34: =IF(S34<>"",E34,"") ->  | W34: =uiShowPSNote -> FALSE | Y34: =IF(AND(W34=FALSE,E34<>""),"Error, remove value",IF(AND(E34="",W34=TRUE),"Enter Value","")) ->  | Z34: 0
W35: =uiShowPSNote -> FALSE | Z35: 0
U36: uiServHistTableShow | W36: =IF(uiPSConfirmation="N",FALSE,IF(AND(resPrevSchemeAlpha="N",OR(PrevMemCS="Y",PrevMemPS="Y")),IF(bfound,"Found",TRUE),FALSE)) -> FALSE | Z36: 0
D37: Start date | E37: End date | I37: Employment type | J37: Break status at key dates | K37: ="Messages" -> Messages | W37: =uiServHistTableShow -> FALSE | Z37: 0
C38: Pension history 1 | J38: =IF(K38="(2012) ",strBreakStatusFull2012,"")& IF(K38="(2012) (2015) ","2012-"&strBreakStatusFull2012&" "&"2015-"&strBreakStatusFull2015,"")& IF(K38="(2015) ",strBreakStatusFull2015,"") ->  | K38: =IF(W38=FALSE,"",IF(AND(W38<>"FALSE",Y38=""),PresenceCheck_Calculations!F27,Y38)) ->  | U38: uitabPensionHistory | V38: =IF(S38<>"",E38,"") ->  | W38: FALSE | Y38: =IF(AND(W38=FALSE,OR(E38<>"",uitabPensionHistoryFirst<>"",I38<>"")),"Error, Clear Table",IF(AND(E38="",W38=TRUE),"","")) ->  | Z38: 0
C39: Pension history 2 | D39: =IF(AND(E38<>"",E38<uiStartDate-1),E38+1,"") ->  | J39: =IF(K39="(2012) ",strBreakStatusFull2012,"")& IF(K39="(2012) (2015) ","2012-"&strBreakStatusFull2012&" "&"2015-"&strBreakStatusFull2015,"")& IF(K39="(2015) ",strBreakStatusFull2015,"") ->  | K39: =IF(W39=FALSE,"",IF(AND(W39<>"FALSE",Y39=""),PresenceCheck_Calculations!F28,Y39)) ->  | W39: FALSE | Y39: =IF(AND(W39=FALSE,OR(E39<>"",I39<>"")),"Error, Clear Table",IF(AND(E39="",W39=TRUE),"","")) ->  | Z39: 0
C40: Pension history 3 | D40: =IF(AND(E39<>"",E39<uiStartDate-1),E39+1,"") ->  | J40: =IF(K40="(2012) ",strBreakStatusFull2012,"")& IF(K40="(2012) (2015) ","2012-"&strBreakStatusFull2012&" "&"2015-"&strBreakStatusFull2015,"")& IF(K40="(2015) ",strBreakStatusFull2015,"") ->  | K40: =IF(W40=FALSE,"",IF(AND(W40<>"FALSE",Y40=""),PresenceCheck_Calculations!F29,Y40)) ->  | W40: FALSE | Y40: =IF(AND(W40=FALSE,OR(E40<>"",I40<>"")),"Error, Clear Table",IF(AND(E40="",W40=TRUE),"","")) ->  | Z40: 0
C41: Pension history 4 | K41: =IF(W41=FALSE,"",IF(AND(W41<>"FALSE",Y41=""),PresenceCheck_Calculations!F30,Y41)) ->  | W41: FALSE | Z41: 0
C42: Pension history 5 | K42: =IF(W42=FALSE,"",IF(AND(W42<>"FALSE",Y42=""),PresenceCheck_Calculations!F31,Y42)) ->  | W42: FALSE | Z42: 0
C43: Pension history 6 | K43: =IF(W43=FALSE,"",IF(AND(W43<>"FALSE",Y43=""),PresenceCheck_Calculations!F32,Y43)) ->  | W43: FALSE | Z43: 0
C44: Pension history 7 | K44: =IF(W44=FALSE,"",IF(AND(W44<>"FALSE",Y44=""),PresenceCheck_Calculations!F33,Y44)) ->  | W44: FALSE | Z44: 0
C45: Pension history 8 | K45: =IF(W45=FALSE,"",IF(AND(W45<>"FALSE",Y45=""),PresenceCheck_Calculations!F34,Y45)) ->  | W45: FALSE | Z45: 0
C46: Pension history 9 | K46: =IF(W46=FALSE,"",IF(AND(W46<>"FALSE",Y46=""),PresenceCheck_Calculations!F35,Y46)) ->  | W46: FALSE | Z46: 0
C47: Pension history 10 | K47: =IF(W47=FALSE,"",IF(AND(W47<>"FALSE",Y47=""),PresenceCheck_Calculations!F36,Y47)) ->  | W47: FALSE | Z47: 0
Z48: 0
B49: Summary of eligibility | W49: =IF(AND(resPrevSchemeAlpha="Y",res2012PresenceCheck="Y",resLT13p5="Y",resLT10="N"),TRUE,FALSE) -> FALSE | Z49: 0
B50: =IF(S50<>"",HLOOKUP(S50,tabQuestionCode,2,0),"") -> As the member was in Civil Service at 31/3/2012 they should have taken part in the Options Exercise. Did the member opt to move on their Taper Date (Y)? | I50: =IF(tabErrorMessage<>"",tabErrorMessage,"") ->  | S50: E | T50: y | U50: resTaper | V50: =IF(AND(uiPrevMemPS="Y",uiPrevMemCS="N"),"N", IF(AND(uiPrevMemPS="N",uiPrevMemCS="N"),"N", IF(res2012PresenceCheck="N","N", IF(S50<>"",IF(resTaper="","Y",resTaper),"Y")))) -> Y | W50: =IF(OR(uiShowPSNote="found",uiShowPSNote),FALSE,IF(AND(res2012PresenceCheck="Y",resLT13p5="Y",resLT10="N"),TRUE,FALSE)) -> FALSE | Y50: =IF(AND(E50<>"",W50=FALSE),"Error, remove value",IF(AND(E50="",W50=TRUE),"Enter Value",IF(AND(resTaper="Y",uiCSScheme<>"alpha"),"",""))) ->  | Z50: 0
U51: =IF(resTaper="Y","N","")&IF(resTaper="N","Y","") ->  | V51: =IF(S51<>"",IF(resTaper="","N",E51),"N") -> N | Z51: 0
B52: Summary of eligibility | W52: =uiServHistTableShow -> FALSE | Z52: 0
C53: Member joins alpha. | W53: =uiServHistTableShow -> FALSE | Z53: 0
W54: FALSE | Z54: 0
W55: FALSE | Z55: 0
W56: FALSE | Z56: 0
W57: FALSE | Z57: 0
W58: FALSE | Z58: 0
A59: h | B59: Calculated JOINER results (HIDDEN SECTION) | Z59: 0
A60: h | B60: These are calculated values based on previous responses, they are calculated in Calculation Sheet. These must have N as default values. | Z60: 0
A61: h | B61: =IF(S61<>"",HLOOKUP(S61,tabQuestionCode,2,0),"") -> Was the member previously in the alpha scheme? | E61: =resPrevSchemeAlpha -> N | I61: Always required | S61: B | U61: resPrevSchemeAlpha | V61: =IF(S61<>"",E61,"") -> N | Z61: 0
A62: h | B62: Was the member in either public or civil service on 1/4/2012? | E62: =res2012PresenceCheck ->  | I62: Calculated Value | S62: B2 | U62: res2012PresenceCheck | Z62: 0
A63: h | B63: Was the member MORE THAN 13.5 years to the public or civil pension service NPA @ 1/4/2012 | E63: =resLT13p5 ->  | I63: Calculated Value | S63: C | U63: resLT13p5 | Z63: 0
A64: h | B64: Was the member LESS THAN 10 years to the public or civil pension service NPA @ 1/4/2012 | E64: =resLT10 ->  | I64: Calculated Value | S64: D | U64: resLT10 | Z64: 0
A65: h | B65: Is the member fully protected? | E65: =resFullyProtected ->  | I65: Calculated Value | S65: F | U65: resFullyProtected | Z65: 0
A66: h | B66: Is the member's start date less than their Taper Date? | E66: =resSDateLTETEDate ->  | I66: Calculated Value | S66: G | U66: resSDateLTETEDate | Z66: 0
A67: h | B67: Alpha rejoiner? | E67: =resAlphaReJoiner -> N | I67: Calculated Value, always required | S67: 0A | U67: resAlphaReJoiner | V67: N | Z67: 0
A68: h | B68: PCSPS rejoiner? | E68: =resPCSPCReJoiner -> N | I68: Calculated Value, always required | S68: 0B | U68: resPCSPCReJoiner | V68: N | Z68: 0
V69: =IF(S69<>"",E69,"") ->  | W69: =IF(U69<>"",F69,"") ->  | X69: =IF(U69<>"",F69,"") ->  | Z69: 0
B70: Stage 4 - Re-joining Status | Z70: 0
C71: =IF(uiErrorCountTop>0,errInputsError,resRejoinerStatusMessage) -> Check Error Messages (Red Text) | Z71: 0
V72: =IF(S72<>"",E72,"") ->  | W72: =IF(U72<>"",F72,"") ->  | X72: =IF(U72<>"",F72,"") ->  | Z72: =IF(Y72<>"",1,0) -> 0
D73: Questions | E73: Response | V73: =IF(S73<>"",E73,"") ->  | W73: =IF(U73<>"",F73,"") ->  | Z73: 0
W74: =IF(U74<>"",F74,"") ->  | Z74: 0
B75: =IF(S75<>"",HLOOKUP(S75,tabQuestionCode,2,0),"") -> Did the member resign from their previous service? | I75: =IF(tabErrorMessage<>"",tabErrorMessage,"") ->  | S75: 1A | U75: ui1A | V75: 0 | W75: =IF(resRejoiner,IF(ISERROR(HLOOKUP(S75,tabDisplayQuestion,2,0)),FALSE,HLOOKUP(S75,tabDisplayQuestion,2,0)),FALSE) -> FALSE | Y75: =IF(AND(W75=FALSE,E75<>""),"Error, remove value",IF(AND(E75="",W75=TRUE),"Enter Value","")) ->  | Z75: 0
W76: =IF(U76<>"",F76,"") ->  | Z76: 0
B77: =IF(S77<>"",HLOOKUP(S77,tabQuestionCode,2,0),"") -> Was the member dismissed due to inefficiency, end of fixed term contract or did their Fixed Term Appointment (FTA) end? | I77: =IF(tabErrorMessage<>"",tabErrorMessage,"") ->  | S77: 1B | U77: ="ui"&S77 -> ui1B | V77: 0 | W77: =IF(resRejoiner,IF(ISERROR(HLOOKUP(S77,tabDisplayQuestion,2,0)),FALSE,HLOOKUP(S77,tabDisplayQuestion,2,0)),FALSE) -> FALSE | Y77: =IF(AND(W77=FALSE,E77<>""),"Error, remove value",IF(AND(E77="",W77=TRUE),"Enter Value","")) ->  | Z77: 0
W78: =IF(U78<>"",F78,"") ->  | Z78: 0
B79: =IF(S79<>"",HLOOKUP(S79,tabQuestionCode,2,0),"") -> Did the take an approved early retirement (AER)? | I79: =IF(tabErrorMessage<>"",tabErrorMessage,"") ->  | S79: 1C | U79: ="ui"&S79 -> ui1C | V79: 0 | W79: =IF(resRejoiner,IF(ISERROR(HLOOKUP(S79,tabDisplayQuestion,2,0)),FALSE,HLOOKUP(S79,tabDisplayQuestion,2,0)),FALSE) -> FALSE | Y79: =IF(AND(W79=FALSE,E79<>""),"Error, remove value",IF(AND(E79="",W79=TRUE),"Enter Value","")) ->  | Z79: 0
W80: =IF(U80<>"",F80,"") ->  | Z80: 0
B81: =IF(S81<>"",HLOOKUP(S81,tabQuestionCode,2,0),"") -> Did the member take an age retirement? | I81: =IF(tabErrorMessage<>"",tabErrorMessage,"") ->  | S81: 1D | U81: ="ui"&S81 -> ui1D | V81: 0 | W81: =IF(resRejoiner,IF(ISERROR(HLOOKUP(S81,tabDisplayQuestion,2,0)),FALSE,HLOOKUP(S81,tabDisplayQuestion,2,0)),FALSE) -> FALSE | Y81: =IF(AND(W81=FALSE,E81<>""),"Error, remove value",IF(AND(E81="",W81=TRUE),"Enter Value","")) ->  | Z81: 0
W82: =IF(U82<>"",F82,"") ->  | Z82: 0
B83: =IF(S83<>"",HLOOKUP(S83,tabQuestionCode,2,0),"") -> Did the member take an ill-health retirement? | I83: =IF(tabErrorMessage<>"",tabErrorMessage,"") ->  | S83: 1E | U83: ="ui"&S83 -> ui1E | V83: 0 | W83: =IF(resRejoiner,IF(ISERROR(HLOOKUP(S83,tabDisplayQuestion,2,0)),FALSE,HLOOKUP(S83,tabDisplayQuestion,2,0)),FALSE) -> FALSE | Y83: =IF(AND(W83=FALSE,E83<>""),"Error, remove value",IF(AND(E83="",W83=TRUE),"Enter Value","")) ->  | Z83: 0
W84: =IF(U84<>"",F84,"") ->  | Z84: 0
B85: =IF(S85<>"",HLOOKUP(S85,tabQuestionCode,2,0),"") -> Did the member take an early retirement (ARR)? | I85: =IF(tabErrorMessage<>"",tabErrorMessage,"") ->  | S85: 1F | U85: ="ui"&S85 -> ui1F | V85: 0 | W85: =IF(resRejoiner,IF(ISERROR(HLOOKUP(S85,tabDisplayQuestion,2,0)),FALSE,HLOOKUP(S85,tabDisplayQuestion,2,0)),FALSE) -> FALSE | Y85: =IF(AND(W85=FALSE,E85<>""),"Error, remove value",IF(AND(E85="",W85=TRUE),"Enter Value","")) ->  | Z85: 0
W86: =IF(U86<>"",F86,"") ->  | Z86: 0
B87: =IF(S87<>"",HLOOKUP(S87,tabQuestionCode,2,0),"") -> Did the member leave WITH early leaver reserved rights? | I87: =IF(tabErrorMessage<>"",tabErrorMessage,"") ->  | S87: 1G | U87: ="ui"&S87 -> ui1G | V87: 0 | W87: =IF(resRejoiner,IF(ISERROR(HLOOKUP(S87,tabDisplayQuestion,2,0)),FALSE,HLOOKUP(S87,tabDisplayQuestion,2,0)),FALSE) -> FALSE | Y87: =IF(AND(W87=FALSE,E87<>""),"Error, remove value",IF(AND(E87="",W87=TRUE),"Enter Value","")) ->  | Z87: 0
W88: =IF(U88<>"",F88,"") ->  | Z88: 0
B89: =IF(S89<>"",HLOOKUP(S89,tabQuestionCode,2,0),"") -> Did the member leave WITHOUT early leaver reserved rights? | I89: =IF(tabErrorMessage<>"",tabErrorMessage,"") ->  | S89: 1H | U89: ="ui"&S89 -> ui1H | V89: 0 | W89: =IF(resRejoiner,IF(ISERROR(HLOOKUP(S89,tabDisplayQuestion,2,0)),FALSE,HLOOKUP(S89,tabDisplayQuestion,2,0)),FALSE) -> FALSE | Y89: =IF(AND(W89=FALSE,E89<>""),"Error, remove value",IF(AND(E89="",W89=TRUE),"Enter Value","")) ->  | Z89: 0
W90: =IF(U90<>"",F90,"") ->  | Z90: 0
B91: =IF(S91<>"",HLOOKUP(S91,tabQuestionCode,2,0),"") -> Did the member have more than two years' qualifying service? | I91: =IF(tabErrorMessage<>"",tabErrorMessage,"") ->  | S91: 1.5 | U91: ="ui"&S91 -> ui1.5 | V91: 0 | W91: =IF(resRejoiner,IF(ISERROR(HLOOKUP(S91,tabDisplayQuestion,2,0)),FALSE,HLOOKUP(S91,tabDisplayQuestion,2,0)),FALSE) -> FALSE | Y91: =IF(AND(W91=FALSE,E91<>""),"Error, remove value",IF(AND(E91="",W91=TRUE),"Enter Value","")) ->  | Z91: 0
W92: =IF(U92<>"",F92,"") ->  | Z92: 0
B93: =IF(S93<>"",HLOOKUP(S93,tabQuestionCode,2,0),"") -> Was the member's previous scheme classic? | I93: =IF(tabErrorMessage<>"",tabErrorMessage,"") ->  | S93: 2A | U93: ="ui"&S93 -> ui2A | V93: 0 | W93: =IF(resRejoiner,IF(ISERROR(HLOOKUP(S93,tabDisplayQuestion,2,0)),FALSE,HLOOKUP(S93,tabDisplayQuestion,2,0)),FALSE) -> FALSE | Y93: =IF(AND(W93=FALSE,E93<>""),"Error, remove value",IF(AND(E93="",W93=TRUE),"Enter Value","")) ->  | Z93: 0
W94: =IF(U94<>"",F94,"") ->  | Z94: 0
B95: =IF(S95<>"",HLOOKUP(S95,tabQuestionCode,2,0),"") -> Was the member's previous scheme nuvos? | I95: =IF(tabErrorMessage<>"",tabErrorMessage,"") ->  | S95: 2B | U95: ="ui"&S95 -> ui2B | V95: 0 | W95: =IF(resRejoiner,IF(ISERROR(HLOOKUP(S95,tabDisplayQuestion,2,0)),FALSE,HLOOKUP(S95,tabDisplayQuestion,2,0)),FALSE) -> FALSE | Z95: 0
W96: =IF(U96<>"",F96,"") ->  | Z96: 0
B97: =IF(S97<>"",HLOOKUP(S97,tabQuestionCode,2,0),"") -> Did the member receive a compensation payment? | I97: =IF(tabErrorMessage<>"",tabErrorMessage,"") ->  | S97: 3 | U97: ="ui"&S97 -> ui3 | V97: 0 | W97: =IF(resRejoiner,IF(ISERROR(HLOOKUP(S97,tabDisplayQuestion,2,0)),FALSE,HLOOKUP(S97,tabDisplayQuestion,2,0)),FALSE) -> FALSE | Y97: =IF(AND(W97=FALSE,E97<>""),"Error, remove value",IF(AND(E97="",W97=TRUE),"Enter Value","")) ->  | Z97: 0
W98: =IF(U98<>"",F98,"") ->  | Z98: 0
B99: =IF(S99<>"",HLOOKUP(S99,tabQuestionCode,2,0),"") -> Did the member have pre-2010 CSCS terms? | I99: =IF(tabErrorMessage<>"",tabErrorMessage,"") ->  | S99: 3.5 | U99: ="ui"&S99 -> ui3.5 | V99: 0 | W99: =IF(resRejoiner,IF(ISERROR(HLOOKUP(S99,tabDisplayQuestion,2,0)),FALSE,HLOOKUP(S99,tabDisplayQuestion,2,0)),FALSE) -> FALSE | Y99: =IF(AND(W99=FALSE,E99<>""),"Error, remove value",IF(AND(E99="",W99=TRUE),"Enter Value","")) ->  | Z99: 0
W100: =IF(U100<>"",F100,"") ->  | Z100: 0
B101: =IF(S101<>"",HLOOKUP(S101,tabQuestionCode,2,0),"") -> Does the member have a Civil Service pension in payment? | I101: =IF(tabErrorMessage<>"",tabErrorMessage,"") ->  | S101: 4 | U101: ="ui"&S101 -> ui4 | V101: 0 | W101: =IF(resRejoiner,IF(ISERROR(HLOOKUP(S101,tabDisplayQuestion,2,0)),FALSE,HLOOKUP(S101,tabDisplayQuestion,2,0)),FALSE) -> FALSE | Y101: =IF(AND(W101=FALSE,E101<>""),"Error, remove value",IF(AND(E101="",W101=TRUE),"Enter Value","")) ->  | Z101: 0
W102: =IF(U102<>"",F102,"") ->  | Z102: 0
B103: =IF(S103<>"",HLOOKUP(S103,tabQuestionCode,2,0),"") -> Did the member re-join within 6 months? | I103: =IF(tabErrorMessage<>"",tabErrorMessage,"") ->  | S103: 5A | U103: ="ui"&S103 -> ui5A | V103: 0 | W103: =IF(resRejoiner,IF(ISERROR(HLOOKUP(S103,tabDisplayQuestion,2,0)),FALSE,HLOOKUP(S103,tabDisplayQuestion,2,0)),FALSE) -> FALSE | Y103: =IF(AND(W103=FALSE,E103<>""),"Error, remove value",IF(AND(E103="",W103=TRUE),"Enter Value","")) ->  | Z103: 0
W104: =IF(U104<>"",F104,"") ->  | Z104: 0
B105: =IF(S105<>"",HLOOKUP(S105,tabQuestionCode,2,0),"") -> Did the member re-join within 5 years? | I105: =IF(tabErrorMessage<>"",tabErrorMessage,"") ->  | S105: 5B | U105: ="ui"&S105 -> ui5B | V105: 0 | W105: =IF(resRejoiner,IF(ISERROR(HLOOKUP(S105,tabDisplayQuestion,2,0)),FALSE,HLOOKUP(S105,tabDisplayQuestion,2,0)),FALSE) -> FALSE | Y105: =IF(AND(W105=FALSE,E105<>""),"Error, remove value",IF(AND(E105="",W105=TRUE),"Enter Value","")) ->  | Z105: 0
W106: =IF(U106<>"",F106,"") ->  | Z106: 0
B107: =IF(S107<>"",HLOOKUP(S107,tabQuestionCode,2,0),"") -> Was the member's previous scheme partnership? | I107: =IF(tabErrorMessage<>"",tabErrorMessage,"") ->  | S107: 6 | U107: ="ui"&S107 -> ui6 | V107: =IF(S107<>"",E107,"") -> 0 | W107: =IF(resRejoiner,IF(ISERROR(HLOOKUP(S107,tabDisplayQuestion,2,0)),FALSE,HLOOKUP(S107,tabDisplayQuestion,2,0)),FALSE) -> FALSE | Y107: =IF(AND(W107=FALSE,E107<>""),"Error, remove value",IF(AND(E107="",W107=TRUE),"Enter Value","")) ->  | Z107: =IF(Y107<>"",1,0) -> 0
B109: =IF(S109<>"",HLOOKUP(S109,tabQuestionCode,2,0),"") -> Did the member retire on a lower tier ill health? | I109: =IF(tabErrorMessage<>"",tabErrorMessage,"") ->  | S109: 7 | U109: ="ui"&S109 -> ui7 | V109: =IF(S109<>"",E109,"") -> 0 | W109: =IF(resRejoiner,IF(ISERROR(HLOOKUP(S109,tabDisplayQuestion,2,0)),FALSE,HLOOKUP(S109,tabDisplayQuestion,2,0)),FALSE) -> FALSE | Y109: =IF(AND(W109=FALSE,E109<>""),"Error, remove value",IF(AND(E109="",W109=TRUE),"Enter Value","")) ->  | Z109: =IF(Y109<>"",1,0) -> 0
Z110: 0
V111: =IF(S111<>"",E111,"") ->  | Z111: 0
B112: Results | Z112: 0
B113: Based on the above results the following actions should be taken : | W113: TRUE | Z113: 0
Z114: 0
Z115: 0
B116: The member can join (or re-join) one of the following schemes: | E116: =resSchemes -> Check inputs | U116: resSchemes | Z116: 0
Z117: 0
B118: The member should be sent pack: | E118: =resPack ->  | U118: resPack | Z118: 0
Z119: 0
B120: The following paragraph should be used in the pack: | E120: =resParagraph ->  | U120: resParagraph | Z120: 0
Z121: 0
B122: Does abatement apply (CSP13)? | E122: =resCSP13 ->  | U122: resCSP13 | Z122: 0
Z123: 0
B124: Should addition wording be included about compensation? | E124: =resComp ->  | U124: resComp | Z124: 0
Z125: 0
B126: Should addition wording be included about quarantine? | E126: =resQuar ->  | U126: resQuar | Z126: 0
Z127: 0
B128: Should the original award be cancelled? | E128: =resAwardCancel ->  | U128: resAwardCancel | Z128: 0
Z129: 0
B130: Use declaration message: | E130: =resDeclarationMessage ->  | U130: resDeclarationMessage | Z130: 0
Z131: 0
B132: Interface message: | E132: =resInterfaceMessage ->  | U132: resInterfaceMessage | Z132: 0
Z133: 0
B134: Public Service message: | E134: =resPublicServiceMessage ->  | U134: resInterfaceMessage | Z134: 0
Z135: 0
Z136: 0
D137: [ADMIN] Path Number | E137: =resID -> Check inputs | U137: resInterfaceMessage | Z137: 0
D138: [ADMIN] The path ID is: | E138: =resUnID -> 256Y12304N | U138: resID | V138: =IF(S138<>"",E138,"") ->  | Z138: =IF(Y138<>"",1,0) -> 0
B140: Error Messages
B142: =IF(bInputsError,errInputsError,"") -> Check Error Messages (Red Text) | C142: =IF(bInputsError,errInputsError,"") -> Check Error Messages (Red Text) | D142: =IF(bInputsError,errInputsError,"") -> Check Error Messages (Red Text)
B143: =IF(bSPAErrors,errSPA,"") -> Check Sex or DOB | C143: =IF(bSPAErrors,errSPA,"") -> Check Sex or DOB | D143: =IF(bSPAErrors,errSPA,"") -> Check Sex or DOB
B144: =IF(bExpiryError,_errVersion,"") ->  | C144: =IF(bExpiryError,_errVersion,"") ->  | D144: =IF(bExpiryError,_errVersion,"") -> 
B145: =IF(bVersionError,_errVersion,"") ->  | C145: =IF(bVersionError,_errVersion,"") ->  | D145: =IF(bVersionError,_errVersion,"") -> 
B146: =IF(bServiceTableError,errServiceTableError,"") -> Check Service Table | C146: =IF(bVersionError,_errVersion,"") ->  | D146: =IF(bVersionError,_errVersion,"") -> 
O150: 8
O151: 9
O152: 10
O153: 11
O154: 12
B155: Audit | O155: 15
B156: =msgPrint -> 08:08, 16 Jun 2022 . | O156: 16
B157: =msgFileName -> Filename : C:\Users\roweg\AppData\Local\Microsoft\Windows\INetCache\Content.Outlook\Q0ID2JYB\[joiner-tool_april-2022.xlsm | O157: 17
B158: =msgVersionNumber -> Version number : 104. | O158: 18
B159: =msgExpiration -> Tool expires on 01/04/2023. | O159: 19
B160: =msgPDFSaveLocation -> PDF saved to : TBC | O160: 20
B161: END OF FORM | O161: 21
O162: 22

Sheet Joiner Calculations_hide (hidden)
C1: =strToolName -> Joiner Tool
B4: Description | C4: This sheet is intended to be used by ADMINISTRATION staff as a backend tool. It is not expected that this will be exposed to the public users. This tool was developed quickly and include a lot of redundant code that was left in so as not to break existing functionality and so speed up the development process. This should be backed out at some point in the future.
B5: Schemes | C5: All
C8: =strToolName&" - Inputs Calculations" -> Joiner Tool - Inputs Calculations
B11: Description | C11: The joiner tool provides the logic to determine if a member if a JOINER or REJOINER. This logic includes all the 2015 PS/CS history, rejoiner rationale, Taper dates etc.
B13: Stage 1 - Personal Details
B14: Name | C14: =uiName -> 0 | D14: Name | F14: Key to cell colours:
B15: National Insurance Number | C15: =uiNINO -> 0 | D15: NINO | F15: User inputs from input sheet (yellow)
B16: Your date of birth | C16: =uiDOB -> 00:00:00 | D16: DOB | F16: Work Variable (orange)
B17: When are you starting work? | C17: =uiStartDate -> 00:00:00 | D17: StartDate | F17: Output (green)
B18: Sex? | C18: =uiSex -> 0 | D18: Sex | F18: Messages (pink)
B20: Stage 2 - Joining Status - About your Public and Civil Pensionable Service History | F20: System Variable (dark green)
B21: Have you ever been a member of the Civil Service pension arrangements? | C21: =IF(uiPrevMemCS="","",uiPrevMemCS) ->  | D21: PrevMemCS | F21: Error In Cell (red)
B22: Previous Public Service Pension Scheme? | C22: =IF(uiPrevMemPS="","",uiPrevMemPS) ->  | D22: PrevMemPS
B23: Was you Civil Service Scheme 'By Analogy'? | C23: =uiByAnalogy -> 0 | D23: ByAnalogy
B24: =IF(uiByAnalogy="Y","What was the by-anaology equivalent scheme?","What Civil Service Scheme Were you in?") -> What Civil Service Scheme Were you in? | C24: =uiCSScheme -> 0 | D24: CSScheme
C28: =strToolName&" - NPA and SPA Calculations" -> Joiner Tool - NPA and SPA Calculations
B31: Description | C31: This section is used to calculate the State Pension Age and Date, it uses a self-contained sheet - SPDCalcualtions_Hide
B33: State Pension Age | C33: =IF(AND(OR(DOB=0,Sex=0),LEFT(resstrSPA,3)="SPA"),"",resstrSPA) ->  | D33: ressSPA
B35: Previous Scheme NPA if CS or By Analogy | C35: =IF(AND(PrevMemCS="Y",NOT(ISERROR(VLOOKUP(CSScheme,tabNPA,2,0)))), VLOOKUP(CSScheme,tabNPA,2,0),"") ->  | D35: resPrevSchemeNPACS
B36: Public Service Decalaraiortn | C36: =uiPSConfirmation -> 0 | D36: resPSConfirmation | E36: Member’s Public Pensionable Service may not be eligible, refer case to MyCSP. | F36: msgPSConfirmation
C38: =strToolName&" - Establish if rejoiner?" -> Joiner Tool - Establish if rejoiner?
B39: Description | C39: This section is used to establish if a member should re-join the PCSPS or alpha schemes, the outcomes are 'PCSPS Rejoiner', 'alpha Rejoiner' or 'Gets A Pack'
C40: This is an interim calculation stage and is used for path references 93-99, which then feed in to the PCSPC or alpha rejoiner routines.
B42: Rejoiner options | F42: Question ID
B43: Previously Alpha? | C43: =IF(PrevMemCS="Y",IF(CSScheme="alpha","Y","N"),"N") -> N | D43: resPrevSchemeAlpha | F43: B
B44: Tapered enrolment | C44: =X104 -> Y | D44: resTaperedEnrolment | F44: E
B45: Start Date < 1/4/2015 | C45: =IF( uiStartDate<day2015_,"Y","N") -> Y | D45: resSDateLTDayOne | F45: G
B46: Start Date < Taper Date | C46: =IF(AND(res2012PresenceCheck="Y",resPrevSchemeAlpha="N",resLT13p5="Y",resLT10="N"), IF(OR(uiStartDate<resTEDate),"Y","N"),"") ->  | D46: resSDateLTETEDate | F46: G
B47: Alpha rejoiner? Used in alpha rejoiner routines | C47: =IF(OR(AND(PrevMemCS="Y",resPrevSchemeAlpha="Y"), AND(PrevMemCS="Y",resPrevSchemeAlpha="N",res2012PresenceCheck="Y", OR( AND(resLT13p5="Y",resLT10="Y",resFullyProtected="N"), AND(resLT13p5="Y",resLT10="N",resTaperedEnrolment="Y",resSDateLTETEDate="N"), AND(resLT13p5="N"), AND(resLT13p5="Y",resLT10="N",resTaperedEnrolment="N",resSDateLTETEDate="N"), AND(resLT13p5="Y",resLT10="N",resTaperedEnrolment="N",resSDateLTETEDate="Y") ) ) ),"Y","N") -> N | D47: resAlphaReJoiner | E47: Path References : 93,95,97,98,99,110 | F47: 0A
B48: PCSPS rejoiner? Used in PCSPS rejoiner routines | C48: =IF(OR(AND(PrevMemCS="Y",resPrevSchemeAlpha="N",res2012PresenceCheck="Y",resLT13p5="Y",resLT10="Y",resFullyProtected="Y"), AND(PrevMemCS="Y",resPrevSchemeAlpha="N",res2012PresenceCheck="Y",resLT13p5="Y",resLT10="N",resTaperedEnrolment="Y",resSDateLTETEDate="Y"), AND(PrevMemCS="Y",resPrevSchemeAlpha="N",res2012PresenceCheck="Y",resLT13p5="Y",resLT10="N",resTaperedEnrolment="N",resSDateLTETEDate="Y"), ),"Y","N") -> N | D48: resPCSPCReJoiner | E48: Path References : 94,96,111 | F48: 0B
B49: Alpha rejoiner? Used in alpha rejoiner routines PATH REF | C49: =IF(OR(AND(PrevMemCS="Y",resPrevSchemeAlpha="Y"), AND(PrevMemCS="Y",resPrevSchemeAlpha="N",res2012PresenceCheck="Y", OR( AND(resLT13p5="Y",resLT10="Y",resFullyProtected="N"), AND(resLT13p5="Y",resLT10="N",resTaperedEnrolment="Y",resSDateLTETEDate="N"), AND(resLT13p5="Y",resLT10="N",resTaperedEnrolment="N",resSDateLTETEDate="Y"), AND(resLT13p5="N"), AND(resLT13p5="Y",resLT10="N",resTaperedEnrolment="N",resSDateLTETEDate="N") ) ) ),"Y","N") -> N
B50: PCSPS rejoiner? Used in PCSPS rejoiner routines PATH REF | C50: =IF(OR(AND(PrevMemCS="Y",resPrevSchemeAlpha="N",res2012PresenceCheck="Y",resLT13p5="Y",resLT10="Y",resFullyProtected="Y"), AND(PrevMemCS="Y",resPrevSchemeAlpha="N",res2012PresenceCheck="Y",resLT13p5="Y",resLT10="N",resTaperedEnrolment="Y",resSDateLTETEDate="Y"), ),"Y","N") -> N
B52: Status | C52: =IF(resAlphaReJoiner="Y","Alpha Rejoiner","")& IF(resPCSPCReJoiner="Y","PCSPS Rejoiner","")& IF(AND(resPCSPCReJoiner="N",resAlphaReJoiner="N",resTaperedEnrolment="N"),"New Joiner","") ->  | D52: RejoinerStatus
B53: is member rejoiner ? | C53: =IF(RejoinerStatus="Alpha Rejoiner",TRUE,IF(RejoinerStatus="PCSPS Rejoiner",TRUE,"false")) -> false | D53: resRejoiner
B54: Rejoiner Status Message | C54: =IF(ISERROR(RejoinerStatus),"", IF(RejoinerStatus="Alpha Rejoiner","You have been identified as a rejoiner (alpha route), continue questions in section 4","")& IF(RejoinerStatus="PCSPS Rejoiner","You have been identified as a rejoiner (alpha route), continue questions in section 4.","")& IF(RejoinerStatus="New Joiner","New Joiner, see section below for pack details in section 5",""))& IF(RejoinerStatus="Taper Joiner","New Joiner, see section below for pack details in section 5","") ->  | D54: resRejoinerStatusMessage
C56: =strToolName&" - Pension Service History Status and Taper Calculations" -> Joiner Tool - Pension Service History Status and Taper Calculations
B57: Description | C57: This section is used to calculate the Presence status at 2012, 2015 and if member was on a qualifying break.
C58: This sheet uses logic in the sheet PresenceCheck_Calculations_hide
B60: Present 2012? | C60: =IF(bServiceTableError,"",IF(OR(PrevMemCS="Y",PrevMemPS="Y"), IF(bEligBreak,"Y","N"), "")) ->  | D60: res2012PresenceCheck | F60: B2
B61: NPA in Scheme at 2012 | C61: =IF(res2012PresenceCheck="Y",iNPAFromSourceScheme,"") ->  | D61: resNPAFromSourceScheme | F61: Question ID
B63: <13.5 Yrs to NPA? | C63: =IF(res2012PresenceCheck="Y", IF(OR(PresenceCheck_Calculations!bTapered=TRUE,PresenceCheck_Calculations!bFullyProtected=TRUE),"Y","N"),"") ->  | D63: resLT13p5 | E63: AAA | F63: C
B64: <10 Yrs to NPA? | C64: =IF(resLT13p5="Y", IF(NOT(ISERROR(PresenceCheck_Calculations!bFullyProtected)), IF(PresenceCheck_Calculations!bFullyProtected,"Y","N"),"N"),"") ->  | D64: resLT10 | F64: D
B65: Fully Protected? | C65: =resLT10 ->  | D65: resFullyProtected | F65: F
B67: Taper Date | C67: =IF(X104="N",DATE(2015,4,1),DATE(YEAR(TEDateNPA),MONTH(TEDateNPA),DAY(TEDateNPA))) -> 2015-04-01 | D67: resTEDate
B68: Taper Date Message | C68: =IF(ISERROR(resTEDate),"", IF(resFullyProtected="Y","", IF(res2012PresenceCheck="Y","The member's taper date is "&TEXT(resTEDate,"dd/mm/yyyy"),""))) ->  | D68: resTEDateMessage
B69: MsgTaper | C69: =IF(resFullyProtected="Y","The member is Fully Protected and will not go in to alpha", IF(ISERROR(resTEDate>StartDate),"", IF(AND(resTEDate="1/4/2015",resTEDate>StartDate),"The member will move in to alpha on 1/4/2015.", IF(AND(resTEDate>StartDate),"The member will join alpha on their taper date of "&TEXT(resTEDate,"dd/mm/yyyy")&".", IF(AND(resTEDate="1/4/2015",resTEDate<=StartDate),"The member's date of joining "&TEXT(StartDate,"dd/mm/yyyy")&" is after 1/4/2015 therefore the member has no protection.", IF(AND(resTEDate<=StartDate),"The member's date of joining "&TEXT(StartDate,"dd/mm/yyyy")&" is on or after their taper date of "&TEXT(resTEDate,"dd/mm/yyyy")&".")))) )) -> The member will join alpha on their taper date of 01/04/2015. | D69: msgTaper
B70: Message of eligible employement | C70: =IF(OR(strStatus2012="",strStatus2015=""),"No service history at either 31/3/2012 or 31/3/2015 therefore the member will not have any right to rejoin an existing scheme. Member joins alpha.","") -> No service history at either 31/3/2012 or 31/3/2015 therefore the member will not have any right to rejoin an existing scheme. Member joins alpha. | D70: msgEligEmployment | F70: =IF(resPSConfirmation="N",msgPSConfirmation,IF(0>0,errCheckInputs,IF(bfound,VLOOKUP("134238208Y8192N",tabRes,E79,0),errNotFound))) -> Not Found : Carry on or check error messages
B71: Assumed NPA at 2012 message | C71: ="Assumed Normal Pension Age based on service at 31/03/2012 is "&iNPAFromSourceScheme -> Assumed Normal Pension Age based on service at 31/03/2012 is | D71: msgAssumedNPA2012
B72: Eligibility Statement : | C72: =IF(bEligBreak,"Based on the member's break history the member is eligible to be considered for protection or tapering, carry on below. ","Member was not on a qualifying break at either 2012 or 2015 and is not eligible for any protection. ") -> Member was not on a qualifying break at either 2012 or 2015 and is not eligible for any protection. | D72: msgEligBreak2
C74: =strToolName&" - Results" -> Joiner Tool - Results | G74: =IF(ISERROR(resTEDate),"","The member's taper date is : "&TEXT(resTEDate,"dd/mm/yyyy")) -> The member's taper date is : 01/04/2015
B76: Path found? | C76: =IF(resPSConfirmation="N",TRUE,IF(ISERROR(VLOOKUP(UnID,P111:P233,1,0)),FALSE,TRUE)) -> FALSE | D76: bfound
B77: Unique Path ID | C77: =UnID -> 256Y12304N | D77: resUnID
E78: Column Lookup
B79: Result ID | C79: =IF(resPSConfirmation="N",msgPSConfirmation,IF(uiErrorCount>0,errCheckInputs,IF(bfound,VLOOKUP(UnID,tabRes,E79,0),errNotFound))) -> Check inputs | D79: resID | E79: 2
B80: Schemes | C80: =IF(resPSConfirmation="N",msgPSConfirmation,IF(uiErrorCount>0,errCheckInputs,IF(bfound,VLOOKUP(UnID,tabRes,E80,0),errNotFound))) -> Check inputs | D80: resSchemes | E80: 3
B81: Pack | C81: =IF(uiErrorCount>0,"", IF(OR(ISERROR(VLOOKUP(UnID,tabRes,E81,0)),ISBLANK(VLOOKUP(UnID,tabRes,E81,0))),"",IF(bfound,VLOOKUP(UnID,tabRes,E81,0),""))) ->  | D81: resPack | E81: 4
B82: Paragraph | D82: resParagraph | E82: 5
B83: CSP13? | D83: resCSP13 | E83: 6
B84: Compensation? | D84: resComp | E84: 7
B85: Quarantine? | D85: resQuar | E85: 8
B86: Award Cancelled? | D86: resAwardCancel | E86: 9
B87: Declaration Message | D87: resDeclarationMessage | E87: 10
B88: Interface Message | D88: resInterfaceMessage | E88: 11
B89: Path Number | C89: =IF(uiErrorCount>0,"",IF(resPSConfirmation="N","1000", IF(OR(ISERROR(VLOOKUP(UnID,tabRes,E88,0))),"",IF(bfound,VLOOKUP(UnID,tabRes,E89,0),"")))) ->  | D89: resPathNumber | E89: 2
B91: Public Service Message | C91: =IF(resPSConfirmation="N","",IF(PrevMemPS="Y","Complete the Public Service History form","")) ->  | D91: resPublicServiceMessage
C94: =strToolName&" - REJOINER Calculations" -> Joiner Tool - REJOINER Calculations
M97: Assumes order of questions is fixed
Q98: Determine rejoiner Status
M99: Q number | N99: Responses | P99: tabQNum | Q99: 1 | R99: 2 | S99: 3 | T99: 4 | U99: 5 | V99: 6 | W99: 7 | X99: 8 | Y99: 9 | Z99: 10 | AA99: 11 | AB99: 12 | AC99: 13 | AD99: 14 | AE99: 15 | AF99: 16 | AG99: 17 | AH99: 18 | AI99: 19 | AJ99: 20 | AK99: 21 | AL99: 22 | AM99: 23 | AN99: 24 | AO99: 25 | AP99: 26 | AQ99: 27 | AR99: 28 | AS99: 29 | AT99: 30 | AU99: 31 | AV99: 32 | AW99: 33
M100: Business Logic, Decision drive by questions | P100: tabQUID | Q100: 0 | R100: =2^(tabQNum) -> 4 | S100: 8 | T100: 16 | U100: 32 | V100: 64 | W100: 128 | X100: 256 | Y100: 512 | Z100: 1024 | AA100: 2048 | AB100: 4096 | AC100: 8192 | AD100: 16384 | AE100: 32768 | AF100: 65536 | AG100: 131072 | AH100: 262144 | AI100: 524288 | AJ100: 1048576 | AK100: 2097152 | AL100: 4194304 | AM100: 8388608 | AN100: 16777216 | AO100: 33554432 | AP100: 67108864 | AQ100: 134217728 | AR100: 268435456 | AS100: 536870912 | AT100: 1073741824 | AU100: 2147483648 | AV100: 4294967296 | AW100: 8589934592
M102: Level, aligns with logic chart in Visio | Q102: A | R102: A0 | S102: A1 | T102: B | U102: B2 | V102: C | W102: D | X102: E | Y102: F | Z102: G | AA102: H | AB102: 0A | AC102: 0B | AD102: 1A | AE102: 1B | AF102: 1C | AG102: 1D | AH102: 1E | AI102: 1F | AJ102: 1G | AK102: 1H | AL102: 1.5 | AM102: 2A | AN102: 2B | AO102: 3 | AP102: 3.5 | AQ102: 4 | AR102: 5A | AS102: 5B | AT102: 6 | AU102: 7
M103: Q | N103: Sum of 'Yes' | O103: Sum of 'No' | P103: UniqueID | Q103: Display | R103: Has the member ever been a member of the Civil Service Pension arrangements? | S103: Has the member ever been a member of the public service pension arrangements? | T103: Was the member previously in the alpha scheme? | U103: Was the member in either public or civil service on 1/4/2012? | V103: Was the member MORE THAN 13.5 years to the public or civil pension service NPA @ 1/4/2012 | W103: Was the member LESS THAN 10 years to the public or civil pension service NPA @ 1/4/2012 | X103: As the member was in Civil Service at 31/3/2012 they should have taken part in the Options Exercise. Did the member opt to move on their Taper Date (Y)? | Y103: Is the member fully protected? | Z103: Is the member's start date less than their Taper Date? | AB103: Alpha rejoiner? | AC103: PCSPS rejoiner? | AD103: Did the member resign from their previous service? | AE103: Was the member dismissed due to inefficiency, end of fixed term contract or did their Fixed Term Appointment (FTA) end? | AF103: Did the take an approved early retirement (AER)? | AG103: Did the member take an age retirement? | AH103: Did the member take an ill-health retirement? | AI103: Did the member take an early retirement (ARR)? | AJ103: Did the member leave WITH early leaver reserved rights? | AK103: Did the member leave WITHOUT early leaver reserved rights? | AL103: Did the member have more than two years' qualifying service? | AM103: Was the member's previous scheme classic? | AN103: Was the member's previous scheme nuvos? | AO103: Did the member receive a compensation payment? | AP103: Did the member have pre-2010 CSCS terms? | AQ103: Does the member have a Civil Service pension in payment? | AR103: Did the member re-join within 6 months? | AS103: Did the member re-join within 5 years? | AT103: Was the member's previous scheme partnership? | AU103: Did the member retire on a lower tier ill health?
M104: Responses | N104: =IF(AND(AB104="N",AC104="N"),SUMIF(Q104:AC104,"Y",$Q$100:$AC$100),SUMIF(AB104:AW104,"Y",$AB$100:$AW$100)) -> 256 | O104: =IF(AND(AB104="N",AC104="N"),SUMIF(Q104:AC104,"N",$Q$100:$AC$100),SUMIF(AB104:AW104,"N",$AB$100:$AW$100)) -> 12304 | P104: =N104&"Y"&O104&"N" -> 256Y12304N | Q104: Y | R104: =IF(ISERROR(VLOOKUP(R102,uitabResults,4,0)),0,VLOOKUP(R102,uitabResults,4,0)) -> 0 | S104: =IF(R104="Y","",IF(ISERROR(VLOOKUP(S102,uitabResults,4,0)),0,VLOOKUP(S102,uitabResults,4,0))) -> 0 | T104: =resPrevSchemeAlpha -> N | U104: =res2012PresenceCheck ->  | V104: =resLT13p5 ->  | W104: =resLT10 ->  | X104: =IF(ISERROR(VLOOKUP(X102,uitabResults,4,0)),0,VLOOKUP(X102,uitabResults,4,0)) -> Y | Y104: =resFullyProtected ->  | Z104: =resSDateLTETEDate ->  | AB104: =IF(ISERROR(VLOOKUP(AB102,uitabResults,4,0)),0,VLOOKUP(AB102,uitabResults,4,0)) -> N | AC104: =IF(ISERROR(VLOOKUP(AC102,uitabResults,4,0)),0,VLOOKUP(AC102,uitabResults,4,0)) -> N | AD104: 0 | AE104: 0 | AF104: 0 | AG104: 0 | AH104: 0 | AI104: 0 | AJ104: 0 | AK104: 0 | AL104: 0 | AM104: 0 | AN104: 0 | AO104: 0 | AP104: 0 | AQ104: 0 | AR104: 0 | AS104: 0 | AT104: 0 | AU104: 0 | AV104: 0 | AW104: 0
M105: Cumulative sum of QUID | Q105: =SUM(Q106:Q107) -> 0 | R105: =SUM(R106:R107) -> 0 | S105: =SUM(S106:S107) -> 0 | T105: 0 | U105: =SUM(U106:U107) -> 0 | V105: =SUM(V106:V107) -> 0 | W105: =SUM(W106:W107) -> 0 | X105: =SUM(X106:X107) -> 0 | Y105: 0 | Z105: 0 | AA105: 0 | AB105: =IF(AND($AB$104="N",$AC$104="N"),0,SUM(AB106:AB107)) -> 0 | AC105: =IF(AND($AB$104="N",$AC$104="N"),0,SUM(AC106:AC107)) -> 0 | AD105: 0 | AE105: 0 | AF105: 0 | AG105: 0 | AH105: 0 | AI105: 0 | AJ105: 0 | AK105: 0 | AL105: 0 | AM105: 0 | AN105: 0 | AO105: 0 | AP105: 0 | AQ105: 0 | AR105: 0 | AS105: 0 | AT105: 0 | AU105: 0 | AV105: 0 | AW105: 0
M106: Cumulative sum of QUID YES | Q106: =IF(AND(AB104="N",AC104="N"),IF(Q104="Y",tabQUID,0),0) -> 0 | R106: 0 | S106: 0 | T106: 0 | U106: 0 | V106: 0 | W106: 0 | X106: 0 | Y106: 0 | Z106: 0 | AA106: 0 | AB106: =IF(AND($AB$104="N",$AC$104="N"),0,IF(AB104="Y",tabQUID,0)+AA106) -> 0 | AC106: 0 | AD106: 0 | AE106: 0 | AF106: 0 | AG106: 0 | AH106: 0 | AI106: 0 | AJ106: 0 | AK106: 0 | AL106: 0 | AM106: 0 | AN106: 0 | AO106: 0 | AP106: 0 | AQ106: 0 | AR106: 0 | AS106: 0 | AT106: 0 | AU106: 0 | AV106: 0 | AW106: 0
M107: Cumulative sum of QUID NO | Q107: =IF(AND(AB104="N",AC104="N"),IF(Q104="N",tabQUID,0),0) -> 0 | R107: 0 | S107: 0 | T107: 0 | U107: 0 | V107: 0 | W107: 0 | X107: 0 | Y107: 0 | Z107: 0 | AA107: 0 | AB107: =IF(AND($AB$104="N",$AC$104="N"),0,IF(AB104="N",tabQUID,0)+AA107) -> 0 | AC107: 0 | AD107: 0 | AE107: 0 | AF107: 0 | AG107: 0 | AH107: 0 | AI107: 0 | AJ107: 0 | AK107: 0 | AL107: 0 | AM107: 0 | AN107: 0 | AO107: 0 | AP107: 0 | AQ107: 0 | AR107: 0 | AS107: 0 | AT107: 0 | AU107: 0 | AV107: 0 | AW107: 0
A108: Error
A109: =IF(SUM(A111:A233)>0,errUniqueness,"") -> Not all paths are unique | M109: Business Logic
A110: Uniqueness Check | B110: Unique ID | C110: Path Reference | D110: Schemes Available | E110: Pack | F110: Paragraph | G110: CSP 13-abatement | H110: Compensation | I110: Quarantine | J110: Award Cancelled | K110: Declaration message | L110: Interface Message | M110: Outcome | N110: Sum of 'Yes' | O110: Sum of 'No' | P110: UniqueID | Q110: =Q103 -> Display | R110: Has the member ever been a member of the Civil Service Pension arrangements? | S110: Has the member ever been a member of the public service pension arrangements? | T110: Was the member previously in the alpha scheme? | U110: Was the member in either public or civil service on 1/4/2012? | V110: Was the member MORE THAN 13.5 years to the public or civil pension service NPA @ 1/4/2012 | W110: Was the member LESS THAN 10 years to the public or civil pension service NPA @ 1/4/2012 | X110: As the member was in Civil Service at 31/3/2012 they should have taken part in the Options Exercise. Did the member opt to move on their Taper Date (Y)? | Y110: Is the member fully protected? | Z110: Is the member's start date less than their Taper Date? | AA110: 0 | AB110: Alpha rejoiner? | AC110: PCSPS rejoiner? | AD110: Did the member resign from their previous service? | AE110: Was the member dismissed due to inefficiency, end of fixed term contract or did their Fixed Term Appointment (FTA) end? | AF110: Did the take an approved early retirement (AER)? | AG110: Did the member take an age retirement? | AH110: Did the member take an ill-health retirement? | AI110: Did the member take an early retirement (ARR)? | AJ110: Did the member leave WITH early leaver reserved rights? | AK110: Did the member leave WITHOUT early leaver reserved rights? | AL110: Did the member have more than two years' qualifying service? | AM110: Was the member's previous scheme classic? | AN110: Was the member's previous scheme nuvos? | AO110: Did the member receive a compensation payment? | AP110: Did the member have pre-2010 CSCS terms? | AQ110: Does the member have a Civil Service pension in payment? | AR110: Did the member re-join within 6 months? | AS110: Did the member re-join within 5 years? | AT110: Was the member's previous scheme partnership? | AU110: Did the member retire on a lower tier ill health? | AV110: 0 | AW110: =AW103 -> 0
A111: =IF(B111="0Y0N",0,COUNTIF($B$111:$B$233,B111)-1) -> 0 | B111: =P111 -> 134242304Y4198400N | C111: 1 | D111: Scheme - alpha or partnership | E111: alpha | F111: alpha Paragraph E | G111: Y | M111: =D111&"_"&E111&"_"&F111&"_"&G111&"_"&H111&"_"&I111&"_" -> Scheme - alpha or partnership_alpha_alpha Paragraph E_Y___ | N111: =SUMIF(Q111:AW111,"Y",$Q$100:$AH$100) -> 134242304 | O111: =SUMIF(Q111:AW111,"N",$Q$100:$AH$100) -> 4198400 | P111: =N111&"Y"&O111&"N" -> 134242304Y4198400N | Q111: Y | AB111: N | AC111: Y | AD111: Y | AL111: N | AQ111: Y
A112: 0 | B112: 24576Y138416128N | C112: 2 | D112: Scheme - alpha or partnership | E112: alpha | F112: alpha Paragraph A | M112: Scheme - alpha or partnership_alpha_alpha Paragraph A_ ___ | N112: 24576 | O112: 138416128 | P112: 24576Y138416128N | Q112: Y | AB112: N | AC112: Y | AD112: Y | AL112: N | AQ112: N
A113: 0 | B113: 155213824Y4096N | C113: 3 | D113: Scheme - alpha or partnership | E113: alpha | F113: alpha Paragraph E | G113: Y | M113: Scheme - alpha or partnership_alpha_alpha Paragraph E_Y___ | N113: 155213824 | O113: 4096 | P113: 155213824Y4096N | Q113: Y | AB113: N | AC113: Y | AD113: Y | AL113: Y | AN113: Y | AQ113: Y
A114: 0 | B114: 20996096Y134221824N | C114: 4 | D114: Scheme - alpha or partnership | E114: alpha | F114: alpha Paragraph A | M114: Scheme - alpha or partnership_alpha_alpha Paragraph A____ | N114: 20996096 | O114: 134221824 | P114: 20996096Y134221824N | Q114: Y | AB114: N | AC114: Y | AD114: Y | AL114: Y | AN114: Y | AQ114: N
A115: 0 | B115: 138436608Y16781312N | C115: 5 | D115: Scheme - alpha or partnership | E115: alpha | F115: alpha Paragraph E | G115: Y | M115: Scheme - alpha or partnership_alpha_alpha Paragraph E_Y___ | N115: 138436608 | O115: 16781312 | P115: 138436608Y16781312N | Q115: Y | AB115: N | AC115: Y | AD115: Y | AL115: Y | AN115: N | AQ115: Y
A116: 0 | B116: 1614831616Y150999040N | C116: 6 | D116: Scheme - alpha or partnership | E116: alpha | F116: alpha Paragraph A | M116: Scheme - alpha or partnership_alpha_alpha Paragraph A____ | N116: 1614831616 | O116: 150999040 | P116: 1614831616Y150999040N | Q116: Y | AB116: N | AC116: Y | AD116: Y | AL116: Y | AN116: N | AQ116: N | AS116: Y | AT116: Y
A117: 0 | B117: 541089792Y1224740864N | C117: 7 | D117: Scheme - alpha or partnership | E117: alpha | F117: alpha Paragraph G | L117: This is a rejoiner, Mark as R on the interface | M117: Scheme - alpha or partnership_alpha_alpha Paragraph G____ | N117: 541089792 | O117: 1224740864 | P117: 541089792Y1224740864N | Q117: Y | AB117: N | AC117: Y | AD117: Y | AL117: Y | AN117: N | AQ117: N | AS117: Y | AT117: N
A118: 0 | B118: 4218880Y687869952N | C118: 8 | D118: Scheme - alpha or partnership | E118: alpha | F118: alpha Paragraph A | M118: Scheme - alpha or partnership_alpha_alpha Paragraph A____ | N118: 4218880 | O118: 687869952 | P118: 4218880Y687869952N | Q118: Y | AB118: N | AC118: Y | AD118: Y | AL118: Y | AN118: N | AQ118: N | AS118: N
A119: 0 | B119: 453025792Y4214784N | C119: 9 | D119: Scheme - alpha or partnership | E119: alpha | F119: alpha Paragraph M | G119: Y | H119: Y - Check £100,000 compensation limit | K119: Complete Declaration | M119: Scheme - alpha or partnership_alpha_alpha Paragraph M_Y_Y - Check £100,000 compensation limit__ | N119: 453025792 | O119: 4214784 | P119: 453025792Y4214784N | Q119: Y | AB119: N | AC119: Y | AD119: N | AE119: Y | AL119: N | AN119: Y | AO119: Y | AQ119: Y | AR119: Y
A120: 0 | B120: 184590336Y272650240N | C120: 10 | D120: Scheme - alpha or partnership | E120: alpha | F120: alpha Paragraph E | G120: Y | M120: Scheme - alpha or partnership_alpha_alpha Paragraph E_Y___ | N120: 184590336 | O120: 272650240 | P120: 184590336Y272650240N | Q120: Y | AB120: N | AC120: Y | AD120: N | AE120: Y | AL120: N | AN120: Y | AO120: Y | AQ120: Y | AR120: N
A121: 0 | B121: 318808064Y138432512N | C121: 11 | D121: Scheme - alpha or partnership | E121: alpha | F121: alpha Paragraph M | H121: Y - Check £100,000 compensation limit | K121: Complete Declaration | M121: Scheme - alpha or partnership_alpha_alpha Paragraph M__Y - Check £100,000 compensation limit__ | N121: 318808064 | O121: 138432512 | P121: 318808064Y138432512N | Q121: Y | AB121: N | AC121: Y | AD121: N | AE121: Y | AL121: N | AN121: Y | AO121: Y | AQ121: N | AR121: Y
A122: 0 | B122: 50372608Y406867968N | C122: 12 | D122: Scheme - alpha or partnership | E122: alpha | F122: alpha Paragraph A | M122: Scheme - alpha or partnership_alpha_alpha Paragraph A____ | N122: 50372608 | O122: 406867968 | P122: 50372608Y406867968N | Q122: Y | AB122: N | AC122: Y | AD122: N | AE122: Y | AL122: N | AN122: Y | AO122: Y | AQ122: N | AR122: N
A123: 0 | B123: 151035904Y37769216N | C123: 13 | D123: Scheme - alpha or partnership | E123: alpha | F123: alpha Paragraph E | G123: Y | M123: Scheme - alpha or partnership_alpha_alpha Paragraph E_Y___ | N123: 151035904 | O123: 37769216 | P123: 151035904Y37769216N | Q123: Y | AB123: N | AC123: Y | AD123: N | AE123: Y | AL123: N | AN123: Y | AO123: N | AQ123: Y
A124: 0 | B124: 16818176Y171986944N | C124: 14 | D124: Scheme - alpha or partnership | E124: alpha | F124: alpha Paragraph A | M124: Scheme - alpha or partnership_alpha_alpha Paragraph A____ | N124: 16818176 | O124: 171986944 | P124: 16818176Y171986944N | Q124: Y | AB124: N | AC124: Y | AD124: N | AE124: Y | AL124: N | AN124: Y | AO124: N | AQ124: N
A125: 0 | B125: 436248576Y20992000N | C125: 15 | D125: Scheme - alpha or partnership | E125: alpha | F125: alpha Paragraph M | G125: Y | H125: Y - Check £100,000 compensation limit | J125: Y | M125: Scheme - alpha or partnership_alpha_alpha Paragraph M_Y_Y - Check £100,000 compensation limit__ | N125: 436248576 | O125: 20992000 | P125: 436248576Y20992000N | Q125: Y | AB125: N | AC125: Y | AD125: N | AE125: Y | AL125: N | AN125: N | AO125: Y | AQ125: Y | AR125: Y
A126: 0 | B126: 704684032Y289427456N | C126: 16 | D126: Scheme - alpha or partnership | E126: alpha | F126: alpha Paragraph E | G126: Y | M126: Scheme - alpha or partnership_alpha_alpha Paragraph E_Y___ | N126: 704684032 | O126: 289427456 | P126: 704684032Y289427456N | Q126: Y | AB126: N | AC126: Y | AD126: N | AE126: Y | AL126: N | AN126: N | AO126: Y | AQ126: Y | AR126: N | AS126: Y
A127: 0 | B127: 167813120Y826298368N | C127: 17 | D127: Scheme - alpha or partnership | E127: alpha | F127: alpha Paragraph E | G127: Y | M127: Scheme - alpha or partnership_alpha_alpha Paragraph E_Y___ | N127: 167813120 | O127: 826298368 | P127: 167813120Y826298368N | Q127: Y | AB127: N | AC127: Y | AD127: N | AE127: Y | AL127: N | AN127: N | AO127: Y | AQ127: Y | AR127: N | AS127: N
A128: 0 | B128: 302030848Y155209728N | C128: 18 | D128: Scheme - alpha or partnership | E128: alpha | F128: alpha Paragraph M | M128: Scheme - alpha or partnership_alpha_alpha Paragraph M____ | N128: 302030848 | O128: 155209728 | P128: 302030848Y155209728N | Q128: Y | AB128: N | AC128: Y | AD128: N | AE128: Y | AL128: N | AN128: N | AO128: Y | AQ128: N | AR128: Y
A129: 0 | B129: 1644208128Y423645184N | C129: 19 | D129: Scheme - alpha or partnership | E129: alpha | F129: alpha Paragraph A | M129: Scheme - alpha or partnership_alpha_alpha Paragraph A____ | N129: 1644208128 | O129: 423645184 | P129: 1644208128Y423645184N | Q129: Y | AB129: N | AC129: Y | AD129: N | AE129: Y | AL129: N | AN129: N | AO129: Y | AQ129: N | AR129: N | AS129: Y | AT129: Y
A130: 0 | B130: 570466304Y1497387008N | C130: 20 | D130: Scheme - alpha or partnership | E130: alpha | F130: alpha Paragraph G | L130: This is a rejoiner, Mark as R on the interface | M130: Scheme - alpha or partnership_alpha_alpha Paragraph G____ | N130: 570466304 | O130: 1497387008 | P130: 570466304Y1497387008N | Q130: Y | AB130: N | AC130: Y | AD130: N | AE130: Y | AL130: N | AN130: N | AO130: Y | AQ130: N | AR130: N | AS130: Y | AT130: N
A131: 0 | B131: 33595392Y960516096N | C131: 21 | D131: Scheme - alpha or partnership | E131: alpha | F131: alpha Paragraph A | M131: Scheme - alpha or partnership_alpha_alpha Paragraph A____ | N131: 33595392 | O131: 960516096 | P131: 33595392Y960516096N | Q131: Y | AB131: N | AC131: Y | AD131: N | AE131: Y | AL131: N | AN131: N | AO131: Y | AQ131: N | AR131: N | AS131: N
A132: 0 | B132: 134258688Y54546432N | C132: 22 | D132: Scheme - alpha or partnership | E132: alpha | F132: alpha Paragraph E | G132: Y | M132: Scheme - alpha or partnership_alpha_alpha Paragraph E_Y___ | N132: 134258688 | O132: 54546432 | P132: 134258688Y54546432N | Q132: Y | AB132: N | AC132: Y | AD132: N | AE132: Y | AL132: N | AN132: N | AO132: N | AQ132: Y
A133: 0 | B133: 1610653696Y188764160N | C133: 23 | D133: Scheme - alpha or partnership | E133: alpha | F133: alpha Paragraph A | M133: Scheme - alpha or partnership_alpha_alpha Paragraph A____ | N133: 1610653696 | O133: 188764160 | P133: 1610653696Y188764160N | Q133: Y | AB133: N | AC133: Y | AD133: N | AE133: Y | AL133: N | AN133: N | AO133: N | AQ133: N | AS133: Y | AT133: Y
A134: 0 | B134: 536911872Y1262505984N | C134: 24 | D134: Scheme - alpha or partnership | E134: alpha | F134: alpha Paragraph A | M134: Scheme - alpha or partnership_alpha_alpha Paragraph A____ | N134: 536911872 | O134: 1262505984 | P134: 536911872Y1262505984N | Q134: Y | AB134: N | AC134: Y | AD134: N | AE134: Y | AL134: N | AN134: N | AO134: N | AQ134: N | AS134: Y | AT134: N
A135: 0 | B135: 40960Y725635072N | C135: 25 | D135: Scheme - alpha or partnership | E135: alpha | F135: alpha Paragraph A | M135: Scheme - alpha or partnership_alpha_alpha Paragraph A____ | N135: 40960 | O135: 725635072 | P135: 40960Y725635072N | Q135: Y | AB135: N | AC135: Y | AD135: N | AE135: Y | AL135: N | AN135: N | AO135: N | AQ135: N | AS135: N
A136: 0 | B136: 457220096Y20480N | C136: 26 | D136: Scheme - alpha or partnership | E136: alpha | F136: alpha Paragraph M | G136: Y | H136: Y - Check £100,000 compensation limit | M136: Scheme - alpha or partnership_alpha_alpha Paragraph M_Y_Y - Check £100,000 compensation limit__ | N136: 457220096 | O136: 20480 | P136: 457220096Y20480N | Q136: Y | AB136: N | AC136: Y | AD136: N | AE136: Y | AL136: Y | AN136: Y | AO136: Y | AQ136: Y | AR136: Y
A137: 0 | B137: 188784640Y268455936N | C137: 27 | D137: Scheme - alpha or partnership | E137: alpha | F137: alpha Paragraph E | G137: Y | M137: Scheme - alpha or partnership_alpha_alpha Paragraph E_Y___ | N137: 188784640 | O137: 268455936 | P137: 188784640Y268455936N | Q137: Y | AB137: N | AC137: Y | AD137: N | AE137: Y | AL137: Y | AN137: Y | AO137: Y | AQ137: Y | AR137: N
A138: 0 | B138: 323002368Y134238208N | C138: 28 | D138: Scheme - alpha or partnership | E138: alpha | F138: alpha Paragraph M | H138: Y - Check £100,000 compensation limit | K138: Complete Declaration | M138: Scheme - alpha or partnership_alpha_alpha Paragraph M__Y - Check £100,000 compensation limit__ | N138: 323002368 | O138: 134238208 | P138: 323002368Y134238208N | Q138: Y | AB138: N | AC138: Y | AD138: N | AE138: Y | AL138: Y | AN138: Y | AO138: Y | AQ138: N | AR138: Y
A139: 0 | B139: 54566912Y402673664N | C139: 29 | D139: Scheme - alpha or partnership | E139: alpha | F139: alpha Paragraph A | M139: Scheme - alpha or partnership_alpha_alpha Paragraph A____ | N139: 54566912 | O139: 402673664 | P139: 54566912Y402673664N | Q139: Y | AB139: N | AC139: Y | AD139: N | AE139: Y | AL139: Y | AN139: Y | AO139: Y | AQ139: N | AR139: N
A140: 0 | B140: 155230208Y33574912N | C140: 30 | D140: Scheme - alpha or partnership | E140: alpha | F140: alpha Paragraph E | G140: Y | M140: Scheme - alpha or partnership_alpha_alpha Paragraph E_Y___ | N140: 155230208 | O140: 33574912 | P140: 155230208Y33574912N | Q140: Y | AB140: N | AC140: Y | AD140: N | AE140: Y | AL140: Y | AN140: Y | AO140: N | AQ140: Y
A141: 0 | B141: 21012480Y167792640N | C141: 31 | D141: Scheme - alpha or partnership | E141: alpha | F141: alpha Paragraph A | M141: Scheme - alpha or partnership_alpha_alpha Paragraph A____ | N141: 21012480 | O141: 167792640 | P141: 21012480Y167792640N | Q141: Y | AB141: N | AC141: Y | AD141: N | AE141: Y | AL141: Y | AN141: Y | AO141: N | AQ141: N
A142: 0 | B142: 440442880Y16797696N | C142: 32 | D142: Scheme - alpha or partnership | E142: alpha | F142: alpha Paragraph M | G142: Y | H142: Y - Check £100,000 compensation limit | K142: Complete Declaration | M142: Scheme - alpha or partnership_alpha_alpha Paragraph M_Y_Y - Check £100,000 compensation limit__ | N142: 440442880 | O142: 16797696 | P142: 440442880Y16797696N | Q142: Y | AB142: N | AC142: Y | AD142: N | AE142: Y | AL142: Y | AN142: N | AO142: Y | AQ142: Y | AR142: Y
A143: =IF(B143="0Y0N",0,COUNTIF($B$111:$B$233,B143)-1) -> 0 | B143: =P143 -> 708878336Y285233152N | C143: 33 | D143: Scheme - alpha or partnership | E143: alpha | F143: alpha Paragraph E | G143: Y | M143: =D143&"_"&E143&"_"&F143&"_"&G143&"_"&H143&"_"&I143&"_" -> Scheme - alpha or partnership_alpha_alpha Paragraph E_Y___ | N143: =SUMIF(Q143:AW143,"Y",$Q$100:$AH$100) -> 708878336 | O143: =SUMIF(Q143:AW143,"N",$Q$100:$AH$100) -> 285233152 | P143: =N143&"Y"&O143&"N" -> 708878336Y285233152N | Q143: Y | AB143: N | AC143: Y | AD143: N | AE143: Y | AL143: Y | AN143: N | AO143: Y | AQ143: Y | AR143: N | AS143: Y
A144: 0 | B144: 172007424Y822104064N | C144: 34 | D144: Scheme - alpha or partnership | E144: alpha | F144: alpha Paragraph E | G144: Y | M144: Scheme - alpha or partnership_alpha_alpha Paragraph E_Y___ | N144: 172007424 | O144: 822104064 | P144: 172007424Y822104064N | Q144: Y | AB144: N | AC144: Y | AD144: N | AE144: Y | AL144: Y | AN144: N | AO144: Y | AQ144: Y | AR144: N | AS144: N
A145: 0 | B145: 306225152Y151015424N | C145: 35 | D145: Scheme - alpha or partnership | E145: alpha | F145: alpha Paragraph M | M145: Scheme - alpha or partnership_alpha_alpha Paragraph M____ | N145: 306225152 | O145: 151015424 | P145: 306225152Y151015424N | Q145: Y | AB145: N | AC145: Y | AD145: N | AE145: Y | AL145: Y | AN145: N | AO145: Y | AQ145: N | AR145: Y
A146: 0 | B146: 1648402432Y419450880N | C146: 36 | D146: Scheme - alpha or partnership | E146: alpha | F146: alpha Paragraph M | M146: Scheme - alpha or partnership_alpha_alpha Paragraph M____ | N146: 1648402432 | O146: 419450880 | P146: 1648402432Y419450880N | Q146: Y | AB146: N | AC146: Y | AD146: N | AE146: Y | AL146: Y | AN146: N | AO146: Y | AQ146: N | AR146: N | AS146: Y | AT146: Y
A147: 0 | B147: 574660608Y1493192704N | C147: 37 | D147: Scheme - alpha or partnership | E147: alpha | F147: alpha Paragraph G | L147: This is a rejoiner, Mark as R on the interface | M147: Scheme - alpha or partnership_alpha_alpha Paragraph G____ | N147: 574660608 | O147: 1493192704 | P147: 574660608Y1493192704N | Q147: Y | AB147: N | AC147: Y | AD147: N | AE147: Y | AL147: Y | AN147: N | AO147: Y | AQ147: N | AR147: N | AS147: Y | AT147: N
A148: 0 | B148: 37789696Y956321792N | C148: 38 | D148: Scheme - alpha or partnership | E148: alpha | F148: alpha Paragraph A | M148: Scheme - alpha or partnership_alpha_alpha Paragraph A____ | N148: 37789696 | O148: 956321792 | P148: 37789696Y956321792N | Q148: Y | AB148: N | AC148: Y | AD148: N | AE148: Y | AL148: Y | AN148: N | AO148: Y | AQ148: N | AR148: N | AS148: N
A149: 0 | B149: 138452992Y50352128N | C149: 39 | D149: Scheme - alpha or partnership | E149: alpha | F149: alpha Paragraph E | G149: Y | M149: Scheme - alpha or partnership_alpha_alpha Paragraph E_Y___ | N149: 138452992 | O149: 50352128 | P149: 138452992Y50352128N | Q149: Y | AB149: N | AC149: Y | AD149: N | AE149: Y | AL149: Y | AN149: N | AO149: N | AQ149: Y
A150: 0 | B150: 1614848000Y184569856N | C150: 40 | D150: Scheme - alpha or partnership | E150: alpha | F150: alpha Paragraph A | M150: Scheme - alpha or partnership_alpha_alpha Paragraph A____ | N150: 1614848000 | O150: 184569856 | P150: 1614848000Y184569856N | Q150: Y | AB150: N | AC150: Y | AD150: N | AE150: Y | AL150: Y | AN150: N | AO150: N | AQ150: N | AS150: Y | AT150: Y
A151: 0 | B151: 541106176Y1258311680N | C151: 41 | D151: Scheme - alpha or partnership | E151: alpha | F151: alpha Paragraph G | L151: This is a rejoiner, Mark as R on the interface | M151: Scheme - alpha or partnership_alpha_alpha Paragraph G____ | N151: 541106176 | O151: 1258311680 | P151: 541106176Y1258311680N | Q151: Y | AB151: N | AC151: Y | AD151: N | AE151: Y | AL151: Y | AN151: N | AO151: N | AQ151: N | AS151: Y | AT151: N
A152: 0 | B152: 4235264Y721440768N | C152: 42 | D152: Scheme - alpha or partnership | E152: alpha | F152: alpha Paragraph G | M152: Scheme - alpha or partnership_alpha_alpha Paragraph G____ | N152: 4235264 | O152: 721440768 | P152: 4235264Y721440768N | Q152: Y | AB152: N | AC152: Y | AD152: N | AE152: Y | AL152: Y | AN152: N | AO152: N | AQ152: N | AS152: N
A153: 0 | B153: 73728Y53248N | C153: 43 | D153: Scheme - alpha or partnership | E153: alpha | F153: alpha Paragraph E | G153: Y | M153: Scheme - alpha or partnership_alpha_alpha Paragraph E_Y___ | N153: 73728 | O153: 53248 | P153: 73728Y53248N | Q153: Y | AB153: N | AC153: Y | AD153: N | AE153: N | AF153: Y
A154: 0 | B154: 139264Y118784N | C154: 44 | D154: Scheme - alpha or partnership | E154: alpha | F154: alpha Paragraph E | G154: Y | M154: Scheme - alpha or partnership_alpha_alpha Paragraph E_Y___ | N154: 139264 | O154: 118784 | P154: 139264Y118784N | Q154: Y | AB154: N | AC154: Y | AD154: N | AE154: N | AF154: N | AG154: Y
A155: 0 | B155: 8658944Y249856N | C155: 45 | D155: Scheme - alpha or partnership | E155: alpha | F155: alpha Paragraph F | G155: Y | M155: Scheme - alpha or partnership_alpha_alpha Paragraph F_Y___ | N155: 8658944 | O155: 249856 | P155: 8658944Y249856N | Q155: Y | AB155: N | AC155: Y | AD155: N | AE155: N | AF155: N | AG155: N | AH155: Y | AM155: Y
A156: 0 | B156: 2147753984Y8638464N | C156: 46 | D156: Scheme - alpha or partnership | E156: alpha | F156: alpha Paragraph F | G156: Y | M156: Scheme - alpha or partnership_alpha_alpha Paragraph F_Y___ | N156: 2147753984 | O156: 8638464 | P156: 2147753984Y8638464N | Q156: Y | AB156: N | AC156: Y | AD156: N | AE156: N | AF156: N | AG156: N | AH156: Y | AM156: N | AU156: Y
A157: 0 | B157: 270336Y2156122112N | C157: 47 | D157: Not eligible, Ill health assesment required refer to MyCSP | M157: Not eligible, Ill health assesment required refer to MyCSP______ | N157: 270336 | O157: 2156122112 | P157: 270336Y2156122112N | Q157: Y | AB157: N | AC157: Y | AD157: N | AE157: N | AF157: N | AG157: N | AH157: Y | AM157: N | AU157: N
A158: 0 | B158: 532480Y512000N | C158: 48 | D158: Scheme - alpha or partnership | E158: alpha | F158: alpha Paragraph E | G158: Y | M158: Scheme - alpha or partnership_alpha_alpha Paragraph E_Y___ | N158: 532480 | O158: 512000 | P158: 532480Y512000N | Q158: Y | AB158: N | AC158: Y | AD158: N | AE158: N | AF158: N | AG158: N | AH158: N | AI158: Y
A159: 0 | B159: 202383360Y1036288N | C159: 49 | D159: Scheme - alpha or partnership | E159: alpha | F159: alpha Paragraph E | G159: Y | H159: Y - Check £100,000 compensation limit | I159: Y | K159: Complete Declaration | M159: Scheme - alpha or partnership_alpha_alpha Paragraph E_Y_Y - Check £100,000 compensation limit_Y_ | N159: 202383360 | O159: 1036288 | P159: 202383360Y1036288N | Q159: Y | AB159: N | AC159: Y | AD159: N | AE159: N | AF159: N | AG159: N | AH159: N | AI159: N | AJ159: Y | AP159: Y | AQ159: Y
A160: 0 | B160: 68165632Y135254016N | C160: 50 | D160: Scheme - alpha or partnership | E160: alpha | F160: alpha Paragraph A | H160: Check £100,000 compensation limit | I160: Y | M160: Scheme - alpha or partnership_alpha_alpha Paragraph A__Check £100,000 compensation limit_Y_ | N160: 68165632 | O160: 135254016 | P160: 68165632Y135254016N | Q160: Y | AB160: N | AC160: Y | AD160: N | AE160: N | AF160: N | AG160: N | AH160: N | AI160: N | AJ160: Y | AP160: Y | AQ160: N
A161: 0 | B161: 403709952Y68145152N | C161: 51 | D161: Scheme - alpha or partnership | E161: alpha | F161: alpha Paragraph M | G161: Y | H161: Y - Check £100,000 compensation limit | I161: Y | K161: Complete Declaration | M161: Scheme - alpha or partnership_alpha_alpha Paragraph M_Y_Y - Check £100,000 compensation limit_Y_ | N161: 403709952 | O161: 68145152 | P161: 403709952Y68145152N | Q161: Y | AB161: N | AC161: Y | AD161: N | AE161: N | AF161: N | AG161: N | AH161: N | AI161: N | AJ161: Y | AP161: N | AQ161: Y | AR161: Y
A162: 0 | B162: 135274496Y336580608N | C162: 52 | D162: Scheme - alpha or partnership | E162: alpha | F162: alpha Paragraph E | G162: Y | H162: Check £100,000 compensation limit | I162: Y | K162: Complete Declaration | M162: Scheme - alpha or partnership_alpha_alpha Paragraph E_Y_ Check £100,000 compensation limit_Y_ | N162: 135274496 | O162: 336580608 | P162: 135274496Y336580608N | Q162: Y | AB162: N | AC162: Y | AD162: N | AE162: N | AF162: N | AG162: N | AH162: N | AI162: N | AJ162: Y | AP162: N | AQ162: Y | AR162: N
A163: 0 | B163: 269492224Y202362880N | C163: 53 | D163: Scheme - alpha or partnership | E163: alpha | F163: alpha Paragraph M | H163: Y - Check £100,000 compensation limit | I163: Y | K163: Complete Declaration | M163: Scheme - alpha or partnership_alpha_alpha Paragraph M__Y - Check £100,000 compensation limit_Y_ | N163: 269492224 | O163: 202362880 | P163: 269492224Y202362880N | Q163: Y | AB163: N | AC163: Y | AD163: N | AE163: N | AF163: N | AG163: N | AH163: N | AI163: N | AJ163: Y | AP163: N | AQ163: N | AR163: Y
A164: 0 | B164: 1056768Y470798336N | C164: 54 | D164: Scheme - alpha or partnership | E164: alpha | F164: alpha Paragraph A | H164: Check £100,000 compensation limit | I164: Y | M164: Scheme - alpha or partnership_alpha_alpha Paragraph A__Check £100,000 compensation limit_Y_ | N164: 1056768 | O164: 470798336 | P164: 1056768Y470798336N | Q164: Y | AB164: N | AC164: Y | AD164: N | AE164: N | AF164: N | AG164: N | AH164: N | AI164: N | AJ164: Y | AP164: N | AQ164: N | AR164: N
A165: 0 | B165: 203431936Y2084864N | C165: 55 | D165: Scheme - alpha or partnership | E165: alpha | F165: alpha Paragraph M | G165: Y | H165: Y - Check £100,000 compensation limit | K165: Complete Declaration | M165: Scheme - alpha or partnership_alpha_alpha Paragraph M_Y_Y - Check £100,000 compensation limit__ | N165: 203431936 | O165: 2084864 | P165: 203431936Y2084864N | Q165: Y | AB165: N | AC165: Y | AD165: N | AE165: N | AF165: N | AG165: N | AH165: N | AI165: N | AJ165: N | AK165: Y | AP165: Y | AQ165: Y
A166: 0 | B166: 69214208Y136302592N | C166: 56 | D166: Scheme - alpha or partnership | E166: alpha | F166: alpha Paragraph A | H166: Check £100,000 compensation limit | M166: Scheme - alpha or partnership_alpha_alpha Paragraph A__Check £100,000 compensation limit__ | N166: 69214208 | O166: 136302592 | P166: 69214208Y136302592N | Q166: Y | AB166: N | AC166: Y | AD166: N | AE166: N | AF166: N | AG166: N | AH166: N | AI166: N | AJ166: N | AK166: Y | AP166: Y | AQ166: N
A167: 0 | B167: 404758528Y69193728N | C167: 57 | D167: Scheme - alpha or partnership | E167: alpha | F167: alpha Paragraph M | G167: Y | H167: Y - Check £100,000 compensation limit | K167: Complete Declaration | M167: Scheme - alpha or partnership_alpha_alpha Paragraph M_Y_Y - Check £100,000 compensation limit__ | N167: 404758528 | O167: 69193728 | P167: 404758528Y69193728N | Q167: Y | AB167: N | AC167: Y | AD167: N | AE167: N | AF167: N | AG167: N | AH167: N | AI167: N | AJ167: N | AK167: Y | AP167: N | AQ167: Y | AR167: Y
A168: 0 | B168: 136323072Y337629184N | C168: 58 | D168: Scheme - alpha or partnership | E168: alpha | F168: alpha Paragraph E | G168: Y | H168: Check £100,000 compensation limit | K168: Complete Declaration | M168: Scheme - alpha or partnership_alpha_alpha Paragraph E_Y_Check £100,000 compensation limit__ | N168: 136323072 | O168: 337629184 | P168: 136323072Y337629184N | Q168: Y | AB168: N | AC168: Y | AD168: N | AE168: N | AF168: N | AG168: N | AH168: N | AI168: N | AJ168: N | AK168: Y | AP168: N | AQ168: Y | AR168: N
A169: 0 | B169: 270540800Y203411456N | C169: 59 | D169: Scheme - alpha or partnership | E169: alpha | F169: alpha Paragraph M | H169: Y - Check £100,000 compensation limit | K169: Complete Declaration | M169: Scheme - alpha or partnership_alpha_alpha Paragraph M__Y - Check £100,000 compensation limit__ | N169: 270540800 | O169: 203411456 | P169: 270540800Y203411456N | Q169: Y | AB169: N | AC169: Y | AD169: N | AE169: N | AF169: N | AG169: N | AH169: N | AI169: N | AJ169: N | AK169: Y | AP169: N | AQ169: N | AR169: Y
A170: 0 | B170: 2105344Y471846912N | C170: 60 | D170: Scheme - alpha or partnership | E170: alpha | F170: alpha Paragraph A | M170: Scheme - alpha or partnership_alpha_alpha Paragraph A____ | N170: 2105344 | O170: 471846912 | P170: 2105344Y471846912N | Q170: Y | AB170: N | AC170: Y | AD170: N | AE170: N | AF170: N | AG170: N | AH170: N | AI170: N | AJ170: N | AK170: Y | AP170: N | AQ170: N | AR170: N
A171: 28 | B171: 0 | C171: 0 | D171: Not Found Carry On | M171: =#REF!&"_"&E171&"_"&F171&"_"&G171&"_"&H171&"_"&I171&"_" ->  | N171: 0 | O171: 0
A172: 28 | B172: 0 | C172: 0 | D172: Not Found Carry On | M172: =D172&"_"&D171&"_"&F172&"_"&G172&"_"&H172&"_"&I172&"_" -> Not Found Carry On_Not Found Carry On_____ | N172: 0 | O172: 0
A173: 28 | B173: 0 | C173: 0 | D173: Not Found Carry On | M173: Not Found Carry On______ | N173: 0 | O173: 0
A174: 28 | B174: 0 | C174: 0 | D174: Not Found Carry On | M174: Not Found Carry On______ | N174: 0 | O174: 0
A175: =IF(B175="0Y0N",0,COUNTIF($B$111:$B$233,B175)-1) -> 28 | B175: =P175 -> 0 | C175: 0 | D175: Not Found Carry On | M175: Not Found Carry On______ | N175: =SUMIF(Q175:AW175,"Y",$Q$100:$AH$100) -> 0 | O175: =SUMIF(Q175:AW175,"N",$Q$100:$AH$100) -> 0
A176: 28 | B176: 0 | C176: 0 | D176: Not Found Carry On | M176: Not Found Carry On______ | N176: 0 | O176: 0
A177: 28 | B177: 0 | C177: 0 | D177: Not Found Carry On | M177: Not Found Carry On______ | N177: 0 | O177: 0
A178: 0 | B178: 69632Y57344N | C178: 68 | D178: Scheme - alpha or partnership | E178: alpha | F178: alpha Paragraph E | G178: Y | M178: Scheme - alpha or partnership_alpha_alpha Paragraph E_Y___ | N178: 69632 | O178: 57344 | P178: =N178&"Y"&O178&"N" -> 69632Y57344N | Q178: Y | AB178: Y | AC178: N | AD178: N | AE178: N | AF178: Y
A179: 0 | B179: 135168Y122880N | C179: 69 | D179: Scheme - alpha or partnership | E179: alpha | F179: alpha Paragraph E | G179: Y | M179: Scheme - alpha or partnership_alpha_alpha Paragraph E_Y___ | N179: 135168 | O179: 122880 | P179: 135168Y122880N | Q179: Y | AB179: Y | AC179: N | AD179: N | AE179: N | AF179: N | AG179: Y
A180: 0 | B180: 2147749888Y253952N | C180: 70 | D180: Scheme - alpha or partnership | E180: alpha | F180: alpha Paragraph F | G180: Y | M180: Scheme - alpha or partnership_alpha_alpha Paragraph F_Y___ | N180: 2147749888 | O180: 253952 | P180: 2147749888Y253952N | Q180: Y | AB180: Y | AC180: N | AD180: N | AE180: N | AF180: N | AG180: N | AH180: Y | AU180: Y
A181: 0 | B181: 266240Y2147737600N | C181: 71 | D181: Not Eligibile | F181: alpha Paragraph | M181: Not Eligibile__alpha Paragraph ____ | N181: 266240 | O181: 2147737600 | P181: 266240Y2147737600N | Q181: Y | AB181: Y | AC181: N | AD181: N | AE181: N | AF181: N | AG181: N | AH181: Y | AU181: N
A182: 0 | B182: 528384Y516096N | C182: 72 | D182: Scheme - alpha or partnership | E182: alpha | F182: alpha Paragraph E | G182: Y | M182: Scheme - alpha or partnership_alpha_alpha Paragraph E_Y___ | N182: 528384 | O182: 516096 | P182: 528384Y516096N | Q182: Y | AB182: Y | AC182: N | AD182: N | AE182: N | AF182: N | AG182: N | AH182: N | AI182: Y
A183: 0 | B183: 134238208Y8192N | C183: 73 | D183: Scheme - alpha or partnership | E183: alpha | F183: alpha Paragraph E | G183: Y | M183: Scheme - alpha or partnership_alpha_alpha Paragraph E_Y___ | N183: 134238208 | O183: 8192 | P183: 134238208Y8192N | Q183: Y | AB183: Y | AC183: N | AD183: Y | AQ183: Y
A184: 0 | B184: 20480Y134225920N | C184: 74 | D184: Scheme - alpha or partnership | E184: alpha | F184: alpha Paragraph A | M184: =D184&"_"&E184&"_"&F184&"_"&G184&"_"&H184&"_"&I184&"_" -> Scheme - alpha or partnership_alpha_alpha Paragraph A____ | N184: 20480 | O184: 134225920 | P184: 20480Y134225920N | Q184: Y | AB184: Y | AC184: N | AD184: Y | AQ184: N
A185: 0 | B185: 436244480Y24576N | C185: 75 | D185: Scheme - alpha or partnership | E185: alpha | F185: alpha Paragraph M | G185: Y | H185: Y - Check £100,000 compensation limit | K185: Complete Declaration, Reassess ill health payment, refer to MyCSP | M185: Scheme - alpha or partnership_alpha_alpha Paragraph M_Y_Y - Check £100,000 compensation limit__ | N185: 436244480 | O185: 24576 | P185: 436244480Y24576N | Q185: Y | AB185: Y | AC185: N | AD185: N | AE185: Y | AO185: Y | AQ185: Y | AR185: Y
A186: 0 | B186: 167809024Y268460032N | C186: 76 | D186: Scheme - alpha or partnership | E186: alpha | F186: alpha Paragraph E | G186: Y | M186: Scheme - alpha or partnership_alpha_alpha Paragraph E_Y___ | N186: 167809024 | O186: 268460032 | P186: 167809024Y268460032N | Q186: Y | AB186: Y | AC186: N | AD186: N | AE186: Y | AO186: Y | AQ186: Y | AR186: N
A187: 0 | B187: 302026752Y134242304N | C187: 77 | D187: Scheme - alpha or partnership | E187: alpha | F187: alpha Paragraph M | H187: Y - Check £100,000 compensation limit | K187: Complete Declaration | M187: Scheme - alpha or partnership_alpha_alpha Paragraph M__Y - Check £100,000 compensation limit__ | N187: 302026752 | O187: 134242304 | P187: 302026752Y134242304N | Q187: Y | AB187: Y | AC187: N | AD187: N | AE187: Y | AO187: Y | AQ187: N | AR187: Y
A188: 0 | B188: 33591296Y402677760N | C188: 78 | D188: Scheme - alpha or partnership | E188: alpha | F188: alpha Paragraph A | M188: Scheme - alpha or partnership_alpha_alpha Paragraph A____ | N188: 33591296 | O188: 402677760 | P188: 33591296Y402677760N | Q188: Y | AB188: Y | AC188: N | AD188: N | AE188: Y | AO188: Y | AQ188: N | AR188: N
A189: 0 | B189: 134254592Y33579008N | C189: 79 | D189: Scheme - alpha or partnership | E189: alpha | F189: alpha Paragraph E | G189: Y | M189: Scheme - alpha or partnership_alpha_alpha Paragraph E_Y___ | N189: 134254592 | O189: 33579008 | P189: 134254592Y33579008N | Q189: Y | AB189: Y | AC189: N | AD189: N | AE189: Y | AO189: N | AQ189: Y
A190: 0 | B190: 36864Y167796736N | C190: 80 | D190: Scheme - alpha or partnership | E190: alpha | F190: alpha Paragraph A | M190: Scheme - alpha or partnership_alpha_alpha Paragraph A____ | N190: 36864 | O190: 167796736 | P190: 36864Y167796736N | Q190: Y | AB190: Y | AC190: N | AD190: N | AE190: Y | AO190: N | AQ190: N
A191: 0 | B191: 202379264Y1040384N | C191: 81 | D191: Scheme - alpha or partnership | E191: alpha | F191: alpha Paragraph E | G191: Y | H191: Y - Check £100,000 compensation limit | I191: Y | K191: Complete Declaration | M191: Scheme - alpha or partnership_alpha_alpha Paragraph E_Y_Y - Check £100,000 compensation limit_Y_ | N191: 202379264 | O191: 1040384 | P191: 202379264Y1040384N | Q191: Y | AB191: Y | AC191: N | AD191: N | AE191: N | AF191: N | AG191: N | AH191: N | AI191: N | AJ191: Y | AP191: Y | AQ191: Y
A192: 0 | B192: 68161536Y135258112N | C192: 82 | D192: Scheme - alpha or partnership | E192: alpha | F192: alpha Paragraph A | H192: Y - Check £100,000 compensation limit | I192: Y | M192: Scheme - alpha or partnership_alpha_alpha Paragraph A__Y - Check £100,000 compensation limit_Y_ | N192: 68161536 | O192: 135258112 | P192: 68161536Y135258112N | Q192: Y | AB192: Y | AC192: N | AD192: N | AE192: N | AF192: N | AG192: N | AH192: N | AI192: N | AJ192: Y | AP192: Y | AQ192: N
A193: 0 | B193: 403705856Y68149248N | C193: 83 | D193: Scheme - alpha or partnership | E193: alpha | F193: alpha Paragraph M | G193: Y | H193: Y - Check £100,000 compensation limit | I193: Y | K193: Complete Declaration | M193: Scheme - alpha or partnership_alpha_alpha Paragraph M_Y_Y - Check £100,000 compensation limit_Y_ | N193: 403705856 | O193: 68149248 | P193: 403705856Y68149248N | Q193: Y | AB193: Y | AC193: N | AD193: N | AE193: N | AF193: N | AG193: N | AH193: N | AI193: N | AJ193: Y | AP193: N | AQ193: Y | AR193: Y
A194: 0 | B194: 135270400Y336584704N | C194: 84 | D194: Scheme - alpha or partnership | E194: alpha | F194: alpha Paragraph E | G194: Y | H194: Y - Check £100,000 compensation limit | I194: Y | K194: Complete Declaration | M194: Scheme - alpha or partnership_alpha_alpha Paragraph E_Y_Y - Check £100,000 compensation limit_Y_ | N194: 135270400 | O194: 336584704 | P194: 135270400Y336584704N | Q194: Y | AB194: Y | AC194: N | AD194: N | AE194: N | AF194: N | AG194: N | AH194: N | AI194: N | AJ194: Y | AP194: N | AQ194: Y | AR194: N
A195: 0 | B195: 269488128Y202366976N | C195: 85 | D195: Scheme - alpha or partnership | E195: alpha | F195: alpha Paragraph M | H195: Y - Check £100,000 compensation limit | I195: Y | K195: Complete Declaration | M195: Scheme - alpha or partnership_alpha_alpha Paragraph M__Y - Check £100,000 compensation limit_Y_ | N195: 269488128 | O195: 202366976 | P195: 269488128Y202366976N | Q195: Y | AB195: Y | AC195: N | AD195: N | AE195: N | AF195: N | AG195: N | AH195: N | AI195: N | AJ195: Y | AP195: N | AQ195: N | AR195: Y
A196: 0 | B196: 1052672Y470802432N | C196: 86 | D196: Scheme - alpha or partnership | E196: alpha | F196: alpha Paragraph A | H196: Y - Check £100,000 compensation limit | I196: Y | M196: Scheme - alpha or partnership_alpha_alpha Paragraph A__Y - Check £100,000 compensation limit_Y_ | N196: 1052672 | O196: 470802432 | P196: 1052672Y470802432N | Q196: Y | AB196: Y | AC196: N | AD196: N | AE196: N | AF196: N | AG196: N | AH196: N | AI196: N | AJ196: Y | AP196: N | AQ196: N | AR196: N
A197: 0 | B197: 69210112Y2088960N | C197: 87 | D197: Scheme - alpha or partnership | E197: alpha | F197: alpha Paragraph E | G197: Y | H197: Y - Check £100,000 compensation limit | I197: Y | K197: Complete Declaration | M197: Scheme - alpha or partnership_alpha_alpha Paragraph E_Y_Y - Check £100,000 compensation limit_Y_ | N197: 69210112 | O197: 2088960 | P197: 69210112Y2088960N | Q197: Y | AB197: Y | AC197: N | AD197: N | AE197: N | AF197: N | AG197: N | AH197: N | AI197: N | AJ197: N | AK197: Y | AP197: Y
A198: 0 | B198: 2101248Y69197824N | C198: 88 | D198: Scheme - alpha or partnership | E198: alpha | F198: alpha Paragraph A | H198: Y - Check £100,000 compensation limit | M198: Scheme - alpha or partnership_alpha_alpha Paragraph A__Y - Check £100,000 compensation limit__ | N198: 2101248 | O198: 69197824 | P198: 2101248Y69197824N | Q198: Y | AB198: Y | AC198: N | AD198: N | AE198: N | AF198: N | AG198: N | AH198: N | AI198: N | AJ198: N | AK198: Y | AP198: N
A199: 0 | B199: 404754432Y69197824N | C199: 89 | D199: Scheme - alpha or partnership | E199: alpha | F199: alpha Paragraph M | G199: Y | H199: Y - Check £100,000 compensation limit | K199: Complete Declaration | M199: Scheme - alpha or partnership_alpha_alpha Paragraph M_Y_Y - Check £100,000 compensation limit__ | N199: 404754432 | O199: 69197824 | P199: 404754432Y69197824N | Q199: Y | AB199: Y | AC199: N | AD199: N | AE199: N | AF199: N | AG199: N | AH199: N | AI199: N | AJ199: N | AK199: Y | AP199: N | AQ199: Y | AR199: Y
A200: 0 | B200: 136318976Y337633280N | C200: 90 | D200: Scheme - alpha or partnership | E200: alpha | F200: alpha Paragraph E | G200: Y | H200: . | K200: Complete Declaration | M200: Scheme - alpha or partnership_alpha_alpha Paragraph E_Y_.__ | N200: 136318976 | O200: 337633280 | P200: 136318976Y337633280N | Q200: Y | AB200: Y | AC200: N | AD200: N | AE200: N | AF200: N | AG200: N | AH200: N | AI200: N | AJ200: N | AK200: Y | AP200: N | AQ200: Y | AR200: N
A201: 0 | B201: 270536704Y203415552N | C201: 91 | D201: Scheme - alpha or partnership | E201: alpha | F201: alpha Paragraph M | H201: Y - Check £100,000 compensation limit | K201: Complete Declaration | M201: Scheme - alpha or partnership_alpha_alpha Paragraph M__Y - Check £100,000 compensation limit__ | N201: 270536704 | O201: 203415552 | P201: 270536704Y203415552N | Q201: Y | AB201: Y | AC201: N | AD201: N | AE201: N | AF201: N | AG201: N | AH201: N | AI201: N | AJ201: N | AK201: Y | AP201: N | AQ201: N | AR201: Y
A202: 0 | B202: 2101248Y471851008N | C202: 92 | D202: Scheme - alpha or partnership | E202: alpha | F202: alpha Paragraph A | M202: =D202&"_"&E202&"_"&F202&"_"&G202&"_"&H202&"_"&I202&"_" -> Scheme - alpha or partnership_alpha_alpha Paragraph A____ | N202: 2101248 | O202: 471851008 | P202: 2101248Y471851008N | Q202: Y | AB202: Y | AC202: N | AD202: N | AE202: N | AF202: N | AG202: N | AH202: N | AI202: N | AJ202: N | AK202: Y | AP202: N | AQ202: N | AR202: N
A203: 28 | B203: 0 | C203: 93 | D203: ALPHA REJOINER - Not used Logic Tree | M203: ALPHA REJOINER - Not used Logic Tree______ | N203: 0 | O203: 0
A204: 28 | B204: 0 | C204: 94 | D204: PCSPS REJOINER - Not used Logic Tree | M204: PCSPS REJOINER - Not used Logic Tree______ | N204: 0 | O204: 0
A205: 28 | B205: 0 | C205: 95 | D205: ALPHA REJOINER - Not used Logic Tree | M205: ALPHA REJOINER - Not used Logic Tree______ | N205: 0 | O205: 0
A206: 28 | B206: 0 | C206: 96 | D206: PCSPS REJOINER - Not used Logic Tree | M206: PCSPS REJOINER - Not used Logic Tree______ | N206: 0 | O206: 0
A207: =IF(B207="0Y0N",0,COUNTIF($B$111:$B$233,B207)-1) -> 28 | B207: =P207 -> 0 | C207: 97 | D207: ALPHA REJOINER - Not used Logic Tree | M207: ALPHA REJOINER - Not used Logic Tree______ | N207: =SUMIF(Q207:AW207,"Y",$Q$100:$AH$100) -> 0 | O207: =SUMIF(Q207:AW207,"N",$Q$100:$AH$100) -> 0
A208: 28 | B208: 0 | C208: 98 | D208: ALPHA REJOINER - Not used Logic Tree | M208: ALPHA REJOINER - Not used Logic Tree______ | N208: 0 | O208: 0
A209: 28 | B209: 0 | C209: 99 | D209: ALPHA REJOINER - Not used Logic Tree | M209: ALPHA REJOINER - Not used Logic Tree______ | N209: 0 | O209: 0
A210: 0 | B210: 4Y12592N | C210: 100 | D210: Scheme - alpha or partnership | E210: alpha | F210: alpha Paragraph A | M210: =E210&"_"&F210&"_"&G210&"_"&H210&"_"&I210&"_"&J210&"_" -> alpha_alpha Paragraph A_____ | N210: 4 | O210: 12592 | P210: =N210&"Y"&O210&"N" -> 4Y12592N | Q210: Y | R210: Y | T210: N | U210: N | X210: N | AB210: N | AC210: N
A211: 0 | B211: 8Y12596N | C211: 101 | D211: Scheme - alpha or partnership | E211: alpha | F211: alpha Paragraph A | M211: =D211&"_"&E211&"_"&F211&"_"&G211&"_"&H211&"_"&I211&"_" -> Scheme - alpha or partnership_alpha_alpha Paragraph A____ | N211: 8 | O211: 12596 | P211: 8Y12596N | Q211: Y | R211: N | S211: Y | T211: N | U211: N | X211: N | AB211: N | AC211: N
A212: 0 | B212: 744Y12564N | C212: 61 | D212: Scheme - alpha or partnership | E212: alpha | F212: alpha Paragraph A | M212: Scheme - alpha or partnership_alpha_alpha Paragraph A____ | N212: 744 | O212: 12564 | P212: 744Y12564N | Q212: Y | R212: N | S212: Y | T212: N | U212: Y | V212: Y | W212: Y | X212: N | Y212: Y | AB212: N | AC212: N
A213: 0 | B213: 232Y13076N | C213: 62 | D213: Scheme - alpha or partnership | E213: alpha | F213: alpha Paragraph A | M213: Scheme - alpha or partnership_alpha_alpha Paragraph A____ | N213: 232 | O213: 13076 | P213: 232Y13076N | Q213: Y | R213: N | S213: Y | T213: N | U213: Y | V213: Y | W213: Y | X213: N | Y213: N | AB213: N | AC213: N
A214: 0 | B214: 1128Y13204N | C214: 63 | D214: Scheme - alpha or partnership | E214: alpha | F214: alpha Paragraph A | M214: Scheme - alpha or partnership_alpha_alpha Paragraph A____ | N214: 1128 | O214: 13204 | P214: 1128Y13204N | Q214: Y | R214: N | S214: Y | T214: N | U214: Y | V214: Y | W214: N | X214: N | Y214: N | Z214: Y | AB214: N | AC214: N
A215: 0 | B215: 104Y14228N | C215: 64 | D215: Scheme - alpha or partnership | E215: alpha | F215: alpha Paragraph A | M215: Scheme - alpha or partnership_alpha_alpha Paragraph A____ | N215: 104 | O215: 14228 | P215: 104Y14228N | Q215: Y | R215: N | S215: Y | T215: N | U215: Y | V215: Y | W215: N | X215: N | Y215: N | Z215: N | AB215: N | AC215: N
A216: 0 | B216: 1128Y12692N | C216: 65 | D216: Scheme - alpha or partnership | E216: alpha | F216: alpha Paragraph A | M216: Scheme - alpha or partnership_alpha_alpha Paragraph A____ | N216: 1128 | O216: 12692 | P216: 1128Y12692N | Q216: Y | R216: N | S216: Y | T216: N | U216: Y | V216: Y | W216: N | X216: N | Z216: Y | AB216: N | AC216: N
A217: 0 | B217: 40Y12628N | C217: 66 | D217: Scheme - alpha or partnership | E217: alpha | F217: alpha Paragraph A | M217: Scheme - alpha or partnership_alpha_alpha Paragraph A____ | N217: 40 | O217: 12628 | P217: 40Y12628N | Q217: Y | R217: N | S217: Y | T217: N | U217: Y | V217: N | X217: N | AB217: N | AC217: N
A218: 0 | B218: 0Y12572N | C218: 67 | D218: Scheme - alpha or partnership | E218: alpha | F218: alpha Paragraph A | M218: Scheme - alpha or partnership_alpha_alpha Paragraph A____ | N218: 0 | O218: 12572 | P218: 0Y12572N | Q218: Y | R218: N | S218: N | T218: N | X218: N | AB218: N | AC218: N
A219: 28 | B219: 0 | C219: 102 | D219: Scheme - alpha or partnership | E219: alpha | F219: alpha Paragraph A | M219: =E219&"_"&F219&"_"&G219&"_"&H219&"_"&I219&"_"&J219&"_" -> alpha_alpha Paragraph A_____ | N219: 0 | O219: 0
A220: =IF(B220="0Y0N",0,COUNTIF($B$111:$B$233,B220)-1) -> 28 | B220: =P220 -> 0 | C220: 110 | M220: =D220&"_"&E220&"_"&F220&"_"&G220&"_"&H220&"_"&I220&"_" -> ______ | N220: =SUMIF(Q220:AW220,"Y",$Q$100:$AH$100) -> 0 | O220: =SUMIF(Q220:AW220,"N",$Q$100:$AH$100) -> 0
A221: =IF(B221="0Y0N",0,COUNTIF($B$111:$B$233,B221)-1) -> 28 | B221: =P221 -> 0 | C221: 111 | D221: ALPHA REJOINER - Not used Logic Tree | M221: =D221&"_"&E221&"_"&F221&"_"&G221&"_"&H221&"_"&I221&"_" -> ALPHA REJOINER - Not used Logic Tree______ | N221: =SUMIF(Q221:AW221,"Y",$Q$100:$AH$100) -> 0 | O221: =SUMIF(Q221:AW221,"N",$Q$100:$AH$100) -> 0
A222: 28 | B222: 0 | C222: 112 | M222: ______ | N222: 0 | O222: 0
A223: 28 | B223: 0 | C223: 113 | M223: ______ | N223: 0 | O223: 0
A224: 28 | B224: 0 | C224: 114 | M224: ______ | N224: 0 | O224: 0
A225: 28 | B225: 0 | C225: 115 | M225: ______ | N225: 0 | O225: 0
A226: 28 | B226: 0 | C226: 116 | M226: ______ | N226: 0 | O226: 0
A227: 28 | B227: 0 | C227: 117 | M227: ______ | N227: 0 | O227: 0
A228: 28 | B228: 0 | C228: 118 | M228: ______ | N228: 0 | O228: 0
A229: 28 | B229: 0 | C229: 119 | M229: ______ | N229: 0 | O229: 0
A230: 28 | B230: 0 | C230: 120 | M230: ______ | N230: 0 | O230: 0
... 378 more rows

Sheet SPD Calculations_Hide (hidden)
C1: SPD
B2: Description | C2: Calculates state pension date, state pension Age in Y, YM and age as string based on In force policy. This is a MyCSP administration tool and is not for public use. This page can be used in it's entirety as an SPA tool in other calculation tools, however these must be kept up to date if this tool changes.
C5: =SPDToolName&" - Inputs" -> SPD - Inputs
B8: Inputs
B10: Date of Birth | C10: ='Joiner Calculations_hide'!DOB -> 00:00:00 | D10: dayDOB
B12: Sex | C12: =Sex -> 0 | D12: strSex
C15: =SPDToolName&" - Results" -> SPD - Results
B18: Results
B20: State Pension Age as string as per .Gov site | C20: =IF(OR(bSexError,bDOBError),_errOverall,strSPA) -> SPA ERROR :Sex IncorrectFALSEDOB Incorrect | D20: resstrSPA
B21: State Pension Date | C21: =IF(OR(bSexError),_errOverall,daySPD) -> SPA ERROR :Sex IncorrectFALSEDOB Incorrect | D21: resdaySPD
B22: State Pension Age In Complete Years (YY) | C22: =IF(OR(bSexError),_errOverall,dSPA_CY) -> SPA ERROR :Sex IncorrectFALSEDOB Incorrect | D22: resdSPA_CY
B23: State Pension Age In Complete Years and Months (YY+MM/12) | C23: =IF(OR(bSexError),_errOverall,dSPA_CYM) -> SPA ERROR :Sex IncorrectFALSEDOB Incorrect | D23: resdSPA_CYM
C27: =SPDToolName&" - Calculations" -> SPD - Calculations
O29: daySPD | P29: dSPA_CY | Q29: dSPA_CYM | R29: strSPA
B30: The data in this table (columns B to F) has been taken from the inforce pension acts. For more information about the source of data refer to the MyCSP SPA Calculator Tool sheet 'BackgroundStats'. | M30: Results lookups : | O30: =MAX(O34:O181) -> 00:00:00 | P30: =MAX(P34:P181) -> 0 | Q30: =MAX(Q34:Q181) -> 0 | R30: =VLOOKUP(dSPA_CYM,Q34:R122,2,0) -> 
D32: SPA is either defined as to an Age or Date, If age known complete age, if date known complete date. All Ages YY+MM, where MM is m/12 | H32: Intermediate Calculations | O32: Lookups
B33: Period within which DOB falls | D33: Day pensionable age attained | E33: Males SPA | F33: Females SPA | H33: Use Date Or Age | I33: State Pension Date (Calc) | J33: SPA Year | K33: SPA Month | L33: SPA Day | M33: SPA as string | O33: SPD Lookup | P33: SPA Lookup Complete Years | Q33: SPA Lookup Complete Years And Months | R33: SPA as String Lookup | T33: StartDOBY | U33: StartDOBM | V33: StartDOBD
B34: 1900-01-01 | C34: 1950-04-05 | E34: 65 | F34: 60 | H34: =IF(LEFT(LOWER(strSEX))="m",IF(E34="","Date","Age"), IF(LEFT(LOWER(strSEX))="f",IF(F34="","Date","Age"),"N/A")) -> N/A | I34: =IF(H34="Age",DATE(YEAR(dayDOB)+INT(IF(strSEX="Male",E34,F34)),MONTH(dayDOB)+(IF(strSEX="Male",(E34-INT(E34))*12,(F34-INT(F34))*12)),DAY(dayDOB)),D34) -> 00:00:00 | J34: =YEAR(DATE(YEAR(I34+0)-YEAR(dayDOB),MONTH(I34+0)-MONTH(dayDOB)+1,DAY(I34+0)-DAY(dayDOB)+1))-1900 -> 0 | K34: =MONTH(DATE(YEAR(I34+0)-YEAR(dayDOB),MONTH(I34+0)-MONTH(dayDOB)+1,DAY(I34+0)-DAY(dayDOB)+1))-1 -> 0 | L34: =I34-DATE(YEAR(dayDOB)+J34,MONTH(dayDOB)+K34,DAY(dayDOB))-0 -> 0 | M34: =J34&" Years "&K34 &" Months "&L34&" Days" -> 0 Years 0 Months 0 Days | O34: =IF(AND(dayDOB>=B34,dayDOB<=C34),I34,"") ->  | P34: =IF(O34<>"",J34,"") ->  | Q34: =IF(O34<>"",J34+K34/12,"") ->  | R34: =IF(P34<>"",M34,"") ->  | T34: =YEAR(B34) -> 1900 | U34: =MONTH(B34) -> 1 | V34: =DAY(B34) -> 1
B35: 1950-04-06 | C35: 1950-05-05 | D35: 2010-05-06 | E35: 65 | H35: N/A | I35: 2010-05-06 | J35: 110 | K35: 4 | L35: 6 | M35: 110 Years 4 Months 6 Days | T35: 1950 | U35: 4 | V35: 6
B36: 1950-05-06 | C36: 1950-06-05 | D36: 2010-07-06 | E36: 65 | H36: N/A | I36: 2010-07-06 | J36: 110 | K36: 6 | L36: 6 | M36: 110 Years 6 Months 6 Days | T36: 1950 | U36: 5 | V36: 6
B37: 1950-06-06 | C37: 1950-07-05 | D37: 2010-09-06 | E37: 65 | H37: N/A | I37: 2010-09-06 | J37: 110 | K37: 8 | L37: 6 | M37: 110 Years 8 Months 6 Days | T37: 1950 | U37: 6 | V37: 6
B38: 1950-07-06 | C38: 1950-08-05 | D38: 2010-11-06 | E38: 65 | H38: N/A | I38: 2010-11-06 | J38: 110 | K38: 10 | L38: 6 | M38: 110 Years 10 Months 6 Days | T38: 1950 | U38: 7 | V38: 6
B39: 1950-08-06 | C39: 1950-09-05 | D39: 2011-01-06 | E39: 65 | H39: N/A | I39: 2011-01-06 | J39: 111 | K39: 0 | L39: 6 | M39: 111 Years 0 Months 6 Days | T39: 1950 | U39: 8 | V39: 6
B40: 1950-09-06 | C40: 1950-10-05 | D40: 2011-03-06 | E40: 65 | H40: N/A | I40: 2011-03-06 | J40: 111 | K40: 2 | L40: 6 | M40: 111 Years 2 Months 6 Days | T40: 1950 | U40: 9 | V40: 6
B41: 1950-10-06 | C41: 1950-11-05 | D41: 2011-05-06 | E41: 65 | H41: N/A | I41: 2011-05-06 | J41: 111 | K41: 4 | L41: 6 | M41: 111 Years 4 Months 6 Days | T41: 1950 | U41: 10 | V41: 6
B42: 1950-11-06 | C42: 1950-12-05 | D42: 2011-07-06 | E42: 65 | H42: N/A | I42: 2011-07-06 | J42: 111 | K42: 6 | L42: 6 | M42: 111 Years 6 Months 6 Days | T42: 1950 | U42: 11 | V42: 6
B43: 1950-12-06 | C43: 1951-01-05 | D43: 2011-09-06 | E43: 65 | H43: N/A | I43: 2011-09-06 | J43: 111 | K43: 8 | L43: 6 | M43: 111 Years 8 Months 6 Days | T43: 1950 | U43: 12 | V43: 6
B44: 1951-01-06 | C44: 1951-02-05 | D44: 2011-11-06 | E44: 65 | H44: N/A | I44: 2011-11-06 | J44: 111 | K44: 10 | L44: 6 | M44: 111 Years 10 Months 6 Days | T44: 1951 | U44: 1 | V44: 6
B45: 1951-02-06 | C45: 1951-03-05 | D45: 2012-01-06 | E45: 65 | H45: N/A | I45: 2012-01-06 | J45: 112 | K45: 0 | L45: 6 | M45: 112 Years 0 Months 6 Days | T45: 1951 | U45: 2 | V45: 6
B46: 1951-03-06 | C46: 1951-04-05 | D46: 2012-03-06 | E46: 65 | H46: N/A | I46: 2012-03-06 | J46: 112 | K46: 2 | L46: 6 | M46: 112 Years 2 Months 6 Days | T46: 1951 | U46: 3 | V46: 6
B47: 1951-04-06 | C47: 1951-05-05 | D47: 2012-05-06 | E47: 65 | H47: N/A | I47: 2012-05-06 | J47: 112 | K47: 4 | L47: 6 | M47: 112 Years 4 Months 6 Days | T47: 1951 | U47: 4 | V47: 6
B48: 1951-05-06 | C48: 1951-06-05 | D48: 2012-07-06 | E48: 65 | H48: N/A | I48: 2012-07-06 | J48: 112 | K48: 6 | L48: 6 | M48: 112 Years 6 Months 6 Days | T48: 1951 | U48: 5 | V48: 6
B49: 1951-06-06 | C49: 1951-07-05 | D49: 2012-09-06 | E49: 65 | H49: N/A | I49: 2012-09-06 | J49: 112 | K49: 8 | L49: 6 | M49: 112 Years 8 Months 6 Days | T49: 1951 | U49: 6 | V49: 6
B50: 1951-07-06 | C50: 1951-08-05 | D50: 2012-11-06 | E50: 65 | H50: N/A | I50: 2012-11-06 | J50: 112 | K50: 10 | L50: 6 | M50: 112 Years 10 Months 6 Days | T50: 1951 | U50: 7 | V50: 6
B51: 1951-08-06 | C51: 1951-09-05 | D51: 2013-01-06 | E51: 65 | H51: N/A | I51: 2013-01-06 | J51: 113 | K51: 0 | L51: 6 | M51: 113 Years 0 Months 6 Days | T51: 1951 | U51: 8 | V51: 6
B52: 1951-09-06 | C52: 1951-10-05 | D52: 2013-03-06 | E52: 65 | H52: N/A | I52: 2013-03-06 | J52: 113 | K52: 2 | L52: 6 | M52: 113 Years 2 Months 6 Days | T52: 1951 | U52: 9 | V52: 6
B53: 1951-10-06 | C53: 1951-11-05 | D53: 2013-05-06 | E53: 65 | H53: N/A | I53: 2013-05-06 | J53: 113 | K53: 4 | L53: 6 | M53: 113 Years 4 Months 6 Days | T53: 1951 | U53: 10 | V53: 6
B54: 1951-11-06 | C54: 1951-12-05 | D54: 2013-07-06 | E54: 65 | H54: N/A | I54: 2013-07-06 | J54: 113 | K54: 6 | L54: 6 | M54: 113 Years 6 Months 6 Days | T54: 1951 | U54: 11 | V54: 6
B55: 1951-12-06 | C55: 1952-01-05 | D55: 2013-09-06 | E55: 65 | H55: N/A | I55: 2013-09-06 | J55: 113 | K55: 8 | L55: 6 | M55: 113 Years 8 Months 6 Days | T55: 1951 | U55: 12 | V55: 6
B56: 1952-01-06 | C56: 1952-02-05 | D56: 2013-11-06 | E56: 65 | H56: N/A | I56: 2013-11-06 | J56: 113 | K56: 10 | L56: 6 | M56: 113 Years 10 Months 6 Days | T56: 1952 | U56: 1 | V56: 6
B57: 1952-02-06 | C57: 1952-03-05 | D57: 2014-01-06 | E57: 65 | H57: N/A | I57: 2014-01-06 | J57: 114 | K57: 0 | L57: 6 | M57: 114 Years 0 Months 6 Days | T57: 1952 | U57: 2 | V57: 6
B58: 1952-03-06 | C58: 1952-04-05 | D58: 2014-03-06 | E58: 65 | H58: N/A | I58: 2014-03-06 | J58: 114 | K58: 2 | L58: 6 | M58: 114 Years 2 Months 6 Days | T58: 1952 | U58: 3 | V58: 6
B59: 1952-04-06 | C59: 1952-05-05 | D59: 2014-05-06 | E59: 65 | H59: N/A | I59: 2014-05-06 | J59: 114 | K59: 4 | L59: 6 | M59: 114 Years 4 Months 6 Days | T59: 1952 | U59: 4 | V59: 6
B60: 1952-05-06 | C60: 1952-06-05 | D60: 2014-07-06 | E60: 65 | H60: N/A | I60: 2014-07-06 | J60: 114 | K60: 6 | L60: 6 | M60: 114 Years 6 Months 6 Days | T60: 1952 | U60: 5 | V60: 6
B61: 1952-06-06 | C61: 1952-07-05 | D61: 2014-09-06 | E61: 65 | H61: N/A | I61: 2014-09-06 | J61: 114 | K61: 8 | L61: 6 | M61: 114 Years 8 Months 6 Days | T61: 1952 | U61: 6 | V61: 6
B62: 1952-07-06 | C62: 1952-08-05 | D62: 2014-11-06 | E62: 65 | H62: N/A | I62: 2014-11-06 | J62: 114 | K62: 10 | L62: 6 | M62: 114 Years 10 Months 6 Days | T62: 1952 | U62: 7 | V62: 6
B63: 1952-08-06 | C63: 1952-09-05 | D63: 2015-01-06 | E63: 65 | H63: N/A | I63: 2015-01-06 | J63: 115 | K63: 0 | L63: 6 | M63: 115 Years 0 Months 6 Days | T63: 1952 | U63: 8 | V63: 6
B64: 1952-09-06 | C64: 1952-10-05 | D64: 2015-03-06 | E64: 65 | H64: N/A | I64: 2015-03-06 | J64: 115 | K64: 2 | L64: 6 | M64: 115 Years 2 Months 6 Days | T64: 1952 | U64: 9 | V64: 6
B65: 1952-10-06 | C65: 1952-11-05 | D65: 2015-05-06 | E65: 65 | H65: N/A | I65: 2015-05-06 | J65: 115 | K65: 4 | L65: 6 | M65: 115 Years 4 Months 6 Days | T65: 1952 | U65: 10 | V65: 6
B66: 1952-11-06 | C66: 1952-12-05 | D66: 2015-07-06 | E66: 65 | H66: =IF(LEFT(LOWER(strSEX))="m",IF(E66="","Date","Age"), IF(LEFT(LOWER(strSEX))="f",IF(F66="","Date","Age"),"N/A")) -> N/A | I66: =IF(H66="Age",DATE(YEAR(dayDOB)+INT(IF(strSEX="Male",E66,F66)),MONTH(dayDOB)+(IF(strSEX="Male",(E66-INT(E66))*12,(F66-INT(F66))*12)),DAY(dayDOB)),D66) -> 2015-07-06 | J66: =YEAR(DATE(YEAR(I66+0)-YEAR(dayDOB),MONTH(I66+0)-MONTH(dayDOB)+1,DAY(I66+0)-DAY(dayDOB)+1))-1900 -> 115 | K66: =MONTH(DATE(YEAR(I66+0)-YEAR(dayDOB),MONTH(I66+0)-MONTH(dayDOB)+1,DAY(I66+0)-DAY(dayDOB)+1))-1 -> 6 | L66: =I66-DATE(YEAR(dayDOB)+J66,MONTH(dayDOB)+K66,DAY(dayDOB))-0 -> 6 | M66: =J66&" Years "&K66 &" Months "&L66&" Days" -> 115 Years 6 Months 6 Days | O66: =IF(AND(dayDOB>=B66,dayDOB<=C66),I66,"") ->  | P66: =IF(O66<>"",J66,"") ->  | Q66: =IF(O66<>"",J66+K66/12,"") ->  | R66: =IF(P66<>"",M66,"") ->  | T66: =YEAR(B66) -> 1952 | U66: =MONTH(B66) -> 11 | V66: =DAY(B66) -> 6
B67: 1952-12-06 | C67: 1953-01-05 | D67: 2015-09-06 | E67: 65 | H67: N/A | I67: 2015-09-06 | J67: 115 | K67: 8 | L67: 6 | M67: 115 Years 8 Months 6 Days | T67: 1952 | U67: 12 | V67: 6
B68: 1953-01-06 | C68: 1953-02-05 | D68: 2015-11-06 | E68: 65 | H68: N/A | I68: 2015-11-06 | J68: 115 | K68: 10 | L68: 6 | M68: 115 Years 10 Months 6 Days | T68: 1953 | U68: 1 | V68: 6
B69: 1953-02-06 | C69: 1953-03-05 | D69: 2016-01-06 | E69: 65 | H69: N/A | I69: 2016-01-06 | J69: 116 | K69: 0 | L69: 6 | M69: 116 Years 0 Months 6 Days | T69: 1953 | U69: 2 | V69: 6
B70: 1953-03-06 | C70: 1953-04-05 | D70: 2016-03-06 | E70: 65 | H70: N/A | I70: 2016-03-06 | J70: 116 | K70: 2 | L70: 6 | M70: 116 Years 2 Months 6 Days | T70: 1953 | U70: 3 | V70: 6
B71: 1953-04-06 | C71: 1953-05-05 | D71: 2016-07-06 | E71: 65 | H71: N/A | I71: 2016-07-06 | J71: 116 | K71: 6 | L71: 6 | M71: 116 Years 6 Months 6 Days | T71: 1953 | U71: 4 | V71: 6
B72: 1953-05-06 | C72: 1953-06-05 | D72: 2016-11-06 | E72: 65 | H72: N/A | I72: 2016-11-06 | J72: 116 | K72: 10 | L72: 6 | M72: 116 Years 10 Months 6 Days | T72: 1953 | U72: 5 | V72: 6
B73: 1953-06-06 | C73: 1953-07-05 | D73: 2017-03-06 | E73: 65 | H73: N/A | I73: 2017-03-06 | J73: 117 | K73: 2 | L73: 6 | M73: 117 Years 2 Months 6 Days | T73: 1953 | U73: 6 | V73: 6
B74: 1953-07-06 | C74: 1953-08-05 | D74: 2017-07-06 | E74: 65 | H74: N/A | I74: 2017-07-06 | J74: 117 | K74: 6 | L74: 6 | M74: 117 Years 6 Months 6 Days | T74: 1953 | U74: 7 | V74: 6
B75: 1953-08-06 | C75: 1953-09-05 | D75: 2017-11-06 | E75: 65 | H75: N/A | I75: 2017-11-06 | J75: 117 | K75: 10 | L75: 6 | M75: 117 Years 10 Months 6 Days | T75: 1953 | U75: 8 | V75: 6
B76: 1953-09-06 | C76: 1953-10-05 | D76: 2018-03-06 | E76: 65 | H76: N/A | I76: 2018-03-06 | J76: 118 | K76: 2 | L76: 6 | M76: 118 Years 2 Months 6 Days | T76: 1953 | U76: 9 | V76: 6
B77: 1953-10-06 | C77: 1953-11-05 | D77: 2018-07-06 | E77: 65 | H77: N/A | I77: 2018-07-06 | J77: 118 | K77: 6 | L77: 6 | M77: 118 Years 6 Months 6 Days | T77: 1953 | U77: 10 | V77: 6
B78: 1953-11-06 | C78: 1953-12-05 | D78: 2018-11-06 | E78: 65 | G78: XXX | H78: N/A | I78: 2018-11-06 | J78: 118 | K78: 10 | L78: 6 | M78: 118 Years 10 Months 6 Days | T78: 1953 | U78: 11 | V78: 6
B79: 1953-12-06 | C79: 1954-01-05 | D79: 2019-03-06 | H79: N/A | I79: 2019-03-06 | J79: 119 | K79: 2 | L79: 6 | M79: 119 Years 2 Months 6 Days | T79: 1953 | U79: 12 | V79: 6
B80: 1954-01-06 | C80: 1954-02-05 | D80: 2019-05-06 | H80: N/A | I80: 2019-05-06 | J80: 119 | K80: 4 | L80: 6 | M80: 119 Years 4 Months 6 Days | T80: 1954 | U80: 1 | V80: 6
B81: 1954-02-06 | C81: 1954-03-05 | D81: 2019-07-06 | H81: N/A | I81: 2019-07-06 | J81: 119 | K81: 6 | L81: 6 | M81: 119 Years 6 Months 6 Days | T81: 1954 | U81: 2 | V81: 6
B82: 1954-03-06 | C82: 1954-04-05 | D82: 2019-09-06 | H82: N/A | I82: 2019-09-06 | J82: 119 | K82: 8 | L82: 6 | M82: 119 Years 8 Months 6 Days | T82: 1954 | U82: 3 | V82: 6
B83: 1954-04-06 | C83: 1954-05-05 | D83: 2019-11-06 | H83: N/A | I83: 2019-11-06 | J83: 119 | K83: 10 | L83: 6 | M83: 119 Years 10 Months 6 Days | T83: 1954 | U83: 4 | V83: 6
B84: 1954-05-06 | C84: 1954-06-05 | D84: 2020-01-06 | H84: N/A | I84: 2020-01-06 | J84: 120 | K84: 0 | L84: 6 | M84: 120 Years 0 Months 6 Days | T84: 1954 | U84: 5 | V84: 6
B85: 1954-06-06 | C85: 1954-07-05 | D85: 2020-03-06 | H85: N/A | I85: 2020-03-06 | J85: 120 | K85: 2 | L85: 6 | M85: 120 Years 2 Months 6 Days | T85: 1954 | U85: 6 | V85: 6
B86: 1954-07-06 | C86: 1954-08-05 | D86: 2020-05-06 | H86: N/A | I86: 2020-05-06 | J86: 120 | K86: 4 | L86: 6 | M86: 120 Years 4 Months 6 Days | T86: 1954 | U86: 7 | V86: 6
B87: 1954-08-06 | C87: 1954-09-05 | D87: 2020-07-06 | H87: N/A | I87: 2020-07-06 | J87: 120 | K87: 6 | L87: 6 | M87: 120 Years 6 Months 6 Days | T87: 1954 | U87: 8 | V87: 6
B88: 1954-09-06 | C88: 1954-10-05 | D88: 2020-09-06 | H88: N/A | I88: 2020-09-06 | J88: 120 | K88: 8 | L88: 6 | M88: 120 Years 8 Months 6 Days | T88: 1954 | U88: 9 | V88: 6
B89: 1954-10-06 | C89: 1960-04-05 | E89: 66 | F89: 66 | H89: N/A | I89: 00:00:00 | J89: 0 | K89: 0 | L89: 0 | M89: 0 Years 0 Months 0 Days | T89: 1954 | U89: 10 | V89: 6
B90: 1960-04-06 | C90: 1960-05-05 | E90: 66.08333333 | F90: 66.08333333 | H90: N/A | I90: 00:00:00 | J90: 0 | K90: 0 | L90: 0 | M90: 0 Years 0 Months 0 Days | T90: 1960 | U90: 4 | V90: 6
B91: 1960-05-06 | C91: 1960-06-05 | E91: 66.16666667 | F91: 66.16666667 | H91: N/A | I91: 00:00:00 | J91: 0 | K91: 0 | L91: 0 | M91: 0 Years 0 Months 0 Days | T91: 1960 | U91: 5 | V91: 6
B92: 1960-06-06 | C92: 1960-07-05 | E92: 66.25 | F92: 66.25 | H92: N/A | I92: 00:00:00 | J92: 0 | K92: =MONTH(DATE(YEAR(I92+0)-YEAR(dayDOB),MONTH(I92+0)-MONTH(dayDOB)+1,DAY(I92+0)-DAY(dayDOB)+1))-1 -> 00:00:00 | L92: 0 | M92: 0 Years 0 Months 0 Days | T92: 1960 | U92: 6 | V92: 6
B93: 1960-07-06 | C93: 1960-07-30 | E93: 66.33333333 | F93: 66.33333333 | H93: N/A | I93: 00:00:00 | J93: 0 | K93: 0 | L93: 0 | M93: 0 Years 0 Months 0 Days | T93: 1960 | U93: 7 | V93: 6
B94: 1960-07-31 | C94: 1960-07-31 | D94: 2026-11-30 | H94: N/A | I94: 2026-11-30 | J94: 66 | K94: 4 | L94: 0 | M94: 66 Years 4 Months 0 Days | T94: 1960 | U94: 7 | V94: 31
B95: 1960-08-01 | C95: 1960-08-05 | E95: 66.33333333 | F95: 66.33333333 | H95: N/A | I95: 00:00:00 | J95: =YEAR(DATE(YEAR(I95+0)-YEAR(dayDOB),MONTH(I95+0)-MONTH(dayDOB)+1,DAY(I95+0)-DAY(dayDOB)+1))-1900 -> 0 | K95: =MONTH(DATE(YEAR(I95+0)-YEAR(dayDOB),MONTH(I95+0)-MONTH(dayDOB)+1,DAY(I95+0)-DAY(dayDOB)+1))-1 -> 0 | L95: =I95-DATE(YEAR(dayDOB)+J95,MONTH(dayDOB)+K95,DAY(dayDOB))-0 -> 0 | M95: 0 Years 0 Months 0 Days | T95: 1960 | U95: 8 | V95: 1
B96: 1960-08-06 | C96: 1960-09-05 | E96: 66.41666667 | F96: 66.41666667 | H96: N/A | I96: 00:00:00 | J96: 0 | K96: 0 | L96: 0 | M96: 0 Years 0 Months 0 Days | T96: 1960 | U96: 8 | V96: 6
B97: 1960-09-06 | C97: 1960-10-05 | E97: 66.5 | F97: 66.5 | H97: N/A | I97: 00:00:00 | J97: 0 | K97: 0 | L97: 0 | M97: 0 Years 0 Months 0 Days | T97: 1960 | U97: 9 | V97: 6
B98: 1960-10-06 | C98: 1960-11-05 | E98: 66.58333333 | F98: 66.58333333 | H98: =IF(LEFT(LOWER(strSEX))="m",IF(E98="","Date","Age"), IF(LEFT(LOWER(strSEX))="f",IF(F98="","Date","Age"),"N/A")) -> N/A | I98: =IF(H98="Age",DATE(YEAR(dayDOB)+INT(IF(strSEX="Male",E98,F98)),MONTH(dayDOB)+(IF(strSEX="Male",(E98-INT(E98))*12,(F98-INT(F98))*12)),DAY(dayDOB)),D98) -> 00:00:00 | J98: 0 | K98: 0 | L98: 0 | M98: =J98&" Years "&K98 &" Months "&L98&" Days" -> 0 Years 0 Months 0 Days | O98: =IF(AND(dayDOB>=B98,dayDOB<=C98),I98,"") ->  | P98: =IF(O98<>"",J98,"") ->  | Q98: =IF(O98<>"",J98+K98/12,"") ->  | R98: =IF(P98<>"",M98,"") ->  | T98: =YEAR(B98) -> 1960 | U98: =MONTH(B98) -> 10 | V98: =DAY(B98) -> 6
B99: 1960-11-06 | C99: 1960-12-05 | E99: 66.66666667 | F99: 66.66666667 | H99: N/A | I99: 00:00:00 | J99: 0 | K99: 0 | L99: 0 | M99: 0 Years 0 Months 0 Days | T99: 1960 | U99: 11 | V99: 6
B100: 1960-12-06 | C100: 1960-12-30 | E100: 66.75 | F100: 66.75 | H100: N/A | I100: 00:00:00 | J100: 0 | K100: 0 | L100: 0 | M100: 0 Years 0 Months 0 Days | T100: 1960 | U100: 12 | V100: 6
B101: 1960-12-31 | C101: 1960-12-31 | D101: 2027-09-30 | H101: N/A | I101: 2027-09-30 | J101: 66 | K101: 9 | L101: 0 | M101: 66 Years 9 Months 0 Days | T101: 1960 | U101: 12 | V101: 31
B102: 1961-01-01 | C102: 1961-01-05 | E102: 66.75 | F102: 66.75 | H102: N/A | I102: 00:00:00 | J102: =YEAR(DATE(YEAR(I102+0)-YEAR(dayDOB),MONTH(I102+0)-MONTH(dayDOB)+1,DAY(I102+0)-DAY(dayDOB)+1))-1900 -> 0 | K102: =MONTH(DATE(YEAR(I102+0)-YEAR(dayDOB),MONTH(I102+0)-MONTH(dayDOB)+1,DAY(I102+0)-DAY(dayDOB)+1))-1 -> 0 | L102: =I102-DATE(YEAR(dayDOB)+J102,MONTH(dayDOB)+K102,DAY(dayDOB))-0 -> 0 | M102: 0 Years 0 Months 0 Days | T102: 1961 | U102: 1 | V102: 1
B103: 1961-01-06 | C103: 1961-01-30 | E103: 66.83333333 | F103: 66.83333333 | H103: N/A | I103: 00:00:00 | J103: =YEAR(DATE(YEAR(I103+0)-YEAR(dayDOB),MONTH(I103+0)-MONTH(dayDOB)+1,DAY(I103+0)-DAY(dayDOB)+1))-1900 -> 0 | K103: =MONTH(DATE(YEAR(I103+0)-YEAR(dayDOB),MONTH(I103+0)-MONTH(dayDOB)+1,DAY(I103+0)-DAY(dayDOB)+1))-1 -> 0 | L103: =I103-DATE(YEAR(dayDOB)+J103,MONTH(dayDOB)+K103,DAY(dayDOB))-0 -> 0 | M103: 0 Years 0 Months 0 Days | T103: 1961 | U103: 1 | V103: 6
B104: 1961-01-31 | C104: 1961-01-31 | D104: 2027-11-30 | H104: N/A | I104: 2027-11-30 | J104: 66 | K104: 10 | L104: 0 | M104: 66 Years 10 Months 0 Days | T104: 1961 | U104: 1 | V104: 31
B105: 1961-02-01 | C105: 1961-02-05 | E105: 66.83333333 | F105: 66.83333333 | H105: N/A | I105: 00:00:00 | J105: =YEAR(DATE(YEAR(I105+0)-YEAR(dayDOB),MONTH(I105+0)-MONTH(dayDOB)+1,DAY(I105+0)-DAY(dayDOB)+1))-1900 -> 0 | K105: =MONTH(DATE(YEAR(I105+0)-YEAR(dayDOB),MONTH(I105+0)-MONTH(dayDOB)+1,DAY(I105+0)-DAY(dayDOB)+1))-1 -> 0 | L105: =I105-DATE(YEAR(dayDOB)+J105,MONTH(dayDOB)+K105,DAY(dayDOB))-0 -> 0 | M105: 0 Years 0 Months 0 Days | T105: 1961 | U105: 2 | V105: 1
B106: 1961-02-06 | C106: 1961-03-05 | E106: 66.91666667 | F106: 66.91666667 | H106: N/A | I106: 00:00:00 | J106: 0 | K106: 0 | L106: 0 | M106: 0 Years 0 Months 0 Days | T106: 1961 | U106: 2 | V106: 6
B107: 1961-03-06 | C107: 1961-04-05 | E107: 67 | F107: 67 | H107: N/A | I107: 00:00:00 | J107: 0 | K107: 0 | L107: 0 | M107: 0 Years 0 Months 0 Days | T107: 1961 | U107: 3 | V107: 6
B108: 1961-04-06 | C108: 1969-04-05 | E108: 67 | F108: 67 | H108: N/A | I108: 00:00:00 | J108: 0 | K108: 0 | L108: 0 | M108: 0 Years 0 Months 0 Days | T108: 1961 | U108: 4 | V108: 6
B109: 1969-04-06 | C109: 1977-04-05 | E109: 67 | F109: 67 | H109: N/A | I109: 00:00:00 | J109: 0 | K109: 0 | L109: 0 | M109: 0 Years 0 Months 0 Days | T109: 1969 | U109: 4 | V109: 6
B110: 1977-04-06 | C110: 1977-05-05 | D110: 2044-05-06 | H110: N/A | I110: 2044-05-06 | J110: 144 | K110: 4 | L110: 6 | M110: 144 Years 4 Months 6 Days | T110: 1977 | U110: 4 | V110: 6
B111: 1977-05-06 | C111: 1977-06-05 | D111: 2044-07-06 | H111: N/A | I111: 2044-07-06 | J111: 144 | K111: 6 | L111: 6 | M111: 144 Years 6 Months 6 Days | T111: 1977 | U111: 5 | V111: 6
B112: 1977-06-06 | C112: 1977-07-05 | D112: 2044-09-06 | H112: N/A | I112: 2044-09-06 | J112: 144 | K112: 8 | L112: 6 | M112: 144 Years 8 Months 6 Days | T112: 1977 | U112: 6 | V112: 6
B113: 1977-07-06 | C113: 1977-08-05 | D113: 2044-11-06 | H113: N/A | I113: 2044-11-06 | J113: 144 | K113: 10 | L113: 6 | M113: 144 Years 10 Months 6 Days | T113: 1977 | U113: 7 | V113: 6
B114: 1977-08-06 | C114: 1977-09-05 | D114: 2045-01-06 | H114: N/A | I114: 2045-01-06 | J114: 145 | K114: 0 | L114: 6 | M114: 145 Years 0 Months 6 Days | T114: 1977 | U114: 8 | V114: 6
B115: 1977-09-06 | C115: 1977-10-05 | D115: 2045-03-06 | H115: N/A | I115: 2045-03-06 | J115: 145 | K115: 2 | L115: 6 | M115: 145 Years 2 Months 6 Days | T115: 1977 | U115: 9 | V115: 6
B116: 1977-10-06 | C116: 1977-11-05 | D116: 2045-05-06 | H116: N/A | I116: 2045-05-06 | J116: 145 | K116: 4 | L116: 6 | M116: 145 Years 4 Months 6 Days | T116: 1977 | U116: 10 | V116: 6
B117: 1977-11-06 | C117: 1977-12-05 | D117: 2045-07-06 | H117: N/A | I117: 2045-07-06 | J117: 145 | K117: 6 | L117: 6 | M117: 145 Years 6 Months 6 Days | T117: 1977 | U117: 11 | V117: 6
B118: 1977-12-06 | C118: 1978-01-05 | D118: 2045-09-06 | H118: N/A | I118: 2045-09-06 | J118: 145 | K118: 8 | L118: 6 | M118: 145 Years 8 Months 6 Days | T118: 1977 | U118: 12 | V118: 6
B119: 1978-01-06 | C119: 1978-02-05 | D119: 2045-11-06 | H119: N/A | I119: 2045-11-06 | J119: 145 | K119: 10 | L119: 6 | M119: 145 Years 10 Months 6 Days | T119: 1978 | U119: 1 | V119: 6
B120: 1978-02-06 | C120: 1978-03-05 | D120: 2046-01-06 | H120: N/A | I120: 2046-01-06 | J120: 146 | K120: 0 | L120: 6 | M120: 146 Years 0 Months 6 Days | T120: 1978 | U120: 2 | V120: 6
B121: 1978-03-06 | C121: 1978-04-05 | D121: 2046-03-06 | H121: N/A | I121: 2046-03-06 | J121: 146 | K121: 2 | L121: 6 | M121: 146 Years 2 Months 6 Days | T121: 1978 | U121: 3 | V121: 6
B122: 1978-04-06 | C122: 2999-12-31 | E122: 68 | F122: 68 | H122: N/A | I122: 00:00:00 | J122: 0 | K122: 0 | L122: 0 | M122: 0 Years 0 Months 0 Days | T122: 1978 | U122: 4 | V122: 6
I125: =IF(H125="Age",DATE(YEAR(dayDOB)+IF(strSEX="Male",E125,F125),MONTH(dayDOB),DAY(dayDOB)),D125) -> 00:00:00
I126: 00:00:00
I127: 00:00:00
I128: 00:00:00
I129: 00:00:00
I130: 00:00:00
I131: 00:00:00
I132: 00:00:00
I133: 00:00:00
I134: 00:00:00
I135: 00:00:00
I136: 00:00:00
I137: 00:00:00
I138: 00:00:00
I139: 00:00:00
I140: 00:00:00
I141: 00:00:00
I142: 00:00:00
I143: 00:00:00
I144: 00:00:00
I145: 00:00:00
I146: 00:00:00
I147: 00:00:00
I148: 00:00:00
I149: 00:00:00
I150: 00:00:00
I151: 00:00:00
I152: 00:00:00
I153: 00:00:00
I154: 00:00:00
I155: 00:00:00
I156: 00:00:00
I157: =IF(H157="Age",DATE(YEAR(dayDOB)+IF(strSEX="Male",E157,F157),MONTH(dayDOB),DAY(dayDOB)),D157) -> 00:00:00
I158: 00:00:00
I159: 00:00:00
I160: 00:00:00
I161: 00:00:00
I162: 00:00:00
I163: 00:00:00
I164: 00:00:00
I165: 00:00:00
I166: 00:00:00
I167: 00:00:00
I168: 00:00:00
I169: 00:00:00
I170: 00:00:00
I171: 00:00:00
I172: 00:00:00
I173: 00:00:00
I174: 00:00:00
I175: 00:00:00
I176: 00:00:00
I177: 00:00:00
I178: 00:00:00
I179: 00:00:00
I180: 00:00:00
I181: 00:00:00
C205: CSCS - Errors and Messages
B208: Error and other messages
B209: General
B210: ="SPA ERROR :"&IF(bSexError,_errSex,"")&IF(_errExpiration,"")&IF(bDOBError,_errDOB,"") -> SPA ERROR :Sex IncorrectFALSEDOB Incorrect | I210: _errOverall
B211: ="Calculation Date :" &TEXT(NOW(),"hh:mm, dd mmm yyyy ")&". " -> Calculation Date :08:08, 16 Jun 2022 . | I211: msgPrint
B212: This SPA tool is based on the following in force Pensions Acts 95, 2007, 2011, 2014. | I212: msgCaveats
B213: =IF(bDOBError,"DOB Incorrect","") -> DOB Incorrect | I213: _errDOB
B214: =IF(bDOBError,"Sex Incorrect","") -> Sex Incorrect | I214: _errSex
C217: =$C$1&" - Error Checking" -> SPD - Error Checking
B220: Error Checking
B221: Sex Error (FALSE=OK) | C221: =IF(OR(LEFT(LOWER(strSEX))="m",LEFT(LOWER(strSEX))="f"),FALSE,TRUE) -> TRUE | D221: bSexError
B222: DOB Error (FALSE=OK) | C222: =IF(OR(dayDOB<DATE(1900,1,1),dayDOB>DATE(2900,12,31)),TRUE,FALSE) -> TRUE | D222: bDOBError

Sheet PresenceCheck_Calculations (hidden)
C1: (Admin View) Taper/PS/CS Calculations
B4: Description | C4: This sheet is used to establish the member's presences at 1/4/2012 and Taper Status
B5: Schemes | C5: NA
C6: Exceptions : TV Ins, TV Outs, Partial/Full Retirement, Machinery of Government, ROC [TBC]
C9: =$C$1&" - Inputs" -> (Admin View) Taper/PS/CS Calculations - Inputs
B11: NOT USED : Initial Eligibility, Have rights been extinguished? | E11: Error?
B12: Have you had a transfer out? | C12: No | D12: strTVOut | E12: =IF(strTVOut="Yes",TRUE,FALSE) -> FALSE | F12: bTVOut
B13: Have you had a transfer in? | C13: No | D13: strTVIn | E13: =IF(strTVIn="Yes",TRUE,FALSE) -> FALSE | F13: bTVIn
B14: Have you had a return of contributions? | C14: No | D14: strROC | E14: =IF(strROC="Yes",TRUE,FALSE) -> FALSE | F14: bROC
B15: Have you been subject to Machinery of Government | C15: No | D15: strMoG | E15: =IF(strMoG="Yes",TRUE,FALSE) -> FALSE | F15: bMoG
B16: Have you taken partial retirement? | C16: No | D16: strPartialRet | E16: =IF(strPartialRet="Yes",TRUE,FALSE) -> FALSE | F16: bPartialRet
B17: Have you taken full retirement? | C17: No | D17: strFullRet | E17: =IF(strFullRet="Yes",TRUE,FALSE) -> FALSE | F17: bFullRet
B21: You may still be eligible for a deferred pension however you circumstances and history require further review.
B23: Work History
B24: Earnings
B25: Assuming: each period of service you have eligibility to a deferred pension
C26: Start Date | D26: End Date | E26: Employment Type | F26: Message/Error | G26: Error | H26: Start Date | I26: End Date | J26: Service | K26: 31/3/2012? | M26: 31/3/2015? | N26: Period of PS | O26: Period of Cs | P26: Period of Other/Break | Q26: Service in period of Other | R26: Is break qualifying at 2012? <5 years | S26: Is break qualifying at 2015? <5 years
B27: Pension Period 01 | C27: =INDEX(uitabPensionHistory,RIGHT(B27,2),1) -> 00:00:00 | D27: =IF(INDEX(uitabPensionHistory,RIGHT(B27,2),2)="","",INDEX(uitabPensionHistory,RIGHT(B27,2),2)) ->  | E27: =IF(INDEX(uitabPensionHistory,RIGHT(B27,2),6)="","",INDEX(uitabPensionHistory,RIGHT(B27,2),6)) ->  | F27: =IF(K27<>"","(2012) ","")&IF(M27<>"","(2015) ","")&IF(AND(D27<>"",D27<C27),"Check Dates",IF(AND(C27<>"",E27=""),"Enter Employment Type",IF(AND(C27="",E27<>""),"Check Dates",""))) -> Enter Employment Type | G27: =IF(F27<>"",IF(OR(LEFT(F27,6)="(2012)",LEFT(F27,6)="(2015)"),FALSE,TRUE),FALSE) -> TRUE | H27: =IF(C27="",StartDate,C27) -> 00:00:00 | I27: =IF(D27="",StartDate,D27) -> 00:00:00 | J27: =YEARFRAC(H27,I27,1) -> 0 | K27: =IF(AND(day2012_>=H27,day2012_<=I27),E27,"") ->  | M27: =IF(AND(day2015_>=H27,day2015_<=I27),E27,"") ->  | N27: =IF(E27<>"public",0,1) -> 0 | O27: =IF(E27<>"civil",0,1) -> 0 | P27: =IF(E27<>"other",0,1) -> 0 | Q27: =IF(P27>0,SUMIF($P$27:$P$36,P27,$J$27:$J$36),0) -> 0 | R27: =IF(AND(K27<>"",OR($G$27:$G$36)),"NA",IF(K27="Other",IF(Q27>5,"B","QB"),K27)) ->  | S27: =IF(AND(M27<>"",OR($G$27:$G$36)),"NA",IF(M27="Other",IF(Q27>5,"B","QB"),M27)) -> 
B28: Pension Period 02 | G28: =IF(F28<>"",IF(OR(LEFT(F28,6)="(2012)",LEFT(F28,6)="(2015)"),FALSE,TRUE),FALSE) -> FALSE | H28: 00:00:00 | I28: 00:00:00 | J28: 0 | N28: =IF(E28<>"public",0,IF(E28=E27,MAX(N$27:N27),MAX(N$27:N27)+1)) -> 0 | O28: =IF(E28<>"civil",0,IF(E28=E27,MAX(O$27:O27),MAX(O$27:O27)+1)) -> 0 | P28: =IF(E28<>"other",0,IF(E28=E27,MAX(P$27:P27),MAX(P$27:P27)+1)) -> 0 | Q28: 0 | R28: =IF(AND(K28<>"",OR($G$27:$G$36)),"NA",IF(K28="Other",IF(Q28>5,"B","QB"),K28)) ->  | S28: =IF(AND(M28<>"",OR($G$27:$G$36)),"NA",IF(M28="Other",IF(Q28>5,"B","QB"),M28)) -> 
B29: Pension Period 03 | G29: FALSE | H29: 00:00:00 | I29: 00:00:00 | J29: 0 | N29: =IF(E29<>"public",0,IF(E29=E28,MAX(N$27:N28),MAX(N$27:N28)+1)) -> 0 | O29: =IF(E29<>"civil",0,IF(E29=E28,MAX(O$27:O28),MAX(O$27:O28)+1)) -> 0 | P29: =IF(E29<>"other",0,IF(E29=E28,MAX(P$27:P28),MAX(P$27:P28)+1)) -> 0 | Q29: =IF(P29>0,SUMIF($P$27:$P$36,P29,$J$27:$J$36),0) -> 0 | R29: =IF(AND(K29<>"",OR($G$27:$G$36)),"NA",IF(K29="Other",IF(Q29>5,"B","QB"),K29)) -> 
B30: Pension Period 04 | G30: FALSE | H30: 00:00:00 | I30: 00:00:00 | J30: 0 | N30: =IF(E30<>"public",0,IF(E30=E29,MAX(N$27:N29),MAX(N$27:N29)+1)) -> 0 | O30: =IF(E30<>"civil",0,IF(E30=E29,MAX(O$27:O29),MAX(O$27:O29)+1)) -> 0 | P30: =IF(E30<>"other",0,IF(E30=E29,MAX(P$27:P29),MAX(P$27:P29)+1)) -> 0 | Q30: 0 | R30: =IF(AND(K30<>"",OR($G$27:$G$36)),"NA",IF(K30="Other",IF(Q30>5,"B","QB"),K30)) -> 
B31: Pension Period 05 | G31: FALSE | H31: 00:00:00 | I31: 00:00:00 | J31: 0 | N31: =IF(E31<>"public",0,IF(E31=E30,MAX(N$27:N30),MAX(N$27:N30)+1)) -> 0 | O31: =IF(E31<>"civil",0,IF(E31=E30,MAX(O$27:O30),MAX(O$27:O30)+1)) -> 0 | P31: =IF(E31<>"other",0,IF(E31=E30,MAX(P$27:P30),MAX(P$27:P30)+1)) -> 0 | Q31: 0 | R31: =IF(AND(K31<>"",OR($G$27:$G$36)),"NA",IF(K31="Other",IF(Q31>5,"B","QB"),K31)) -> 
B32: Pension Period 06 | G32: FALSE | H32: 00:00:00 | I32: 00:00:00 | J32: 0 | N32: =IF(E32<>"public",0,IF(E32=E31,MAX(N$27:N31),MAX(N$27:N31)+1)) -> 0 | O32: =IF(E32<>"civil",0,IF(E32=E31,MAX(O$27:O31),MAX(O$27:O31)+1)) -> 0 | P32: =IF(E32<>"other",0,IF(E32=E31,MAX(P$27:P31),MAX(P$27:P31)+1)) -> 0 | Q32: 0 | R32: =IF(AND(K32<>"",OR($G$27:$G$36)),"NA",IF(K32="Other",IF(Q32>5,"B","QB"),K32)) -> 
B33: Pension Period 07 | G33: FALSE | H33: 00:00:00 | I33: 00:00:00 | J33: 0 | N33: =IF(E33<>"public",0,IF(E33=E32,MAX(N$27:N32),MAX(N$27:N32)+1)) -> 0 | O33: =IF(E33<>"civil",0,IF(E33=E32,MAX(O$27:O32),MAX(O$27:O32)+1)) -> 0 | P33: =IF(E33<>"other",0,IF(E33=E32,MAX(P$27:P32),MAX(P$27:P32)+1)) -> 0 | Q33: 0
B34: Pension Period 08 | G34: FALSE | H34: 00:00:00 | I34: 00:00:00 | J34: 0 | N34: =IF(E34<>"public",0,IF(E34=E33,MAX(N$27:N33),MAX(N$27:N33)+1)) -> 0 | O34: =IF(E34<>"civil",0,IF(E34=E33,MAX(O$27:O33),MAX(O$27:O33)+1)) -> 0 | P34: =IF(E34<>"other",0,IF(E34=E33,MAX(P$27:P33),MAX(P$27:P33)+1)) -> 0 | Q34: 0
B35: Pension Period 09 | G35: FALSE | H35: 00:00:00 | I35: 00:00:00 | J35: 0 | N35: =IF(E35<>"public",0,IF(E35=E34,MAX(N$27:N34),MAX(N$27:N34)+1)) -> 0 | O35: =IF(E35<>"civil",0,IF(E35=E34,MAX(O$27:O34),MAX(O$27:O34)+1)) -> 0 | P35: =IF(E35<>"other",0,IF(E35=E34,MAX(P$27:P34),MAX(P$27:P34)+1)) -> 0 | Q35: 0
B36: Pension Period 10 | G36: FALSE | H36: 00:00:00 | I36: 00:00:00 | J36: 0 | N36: =IF(E36<>"public",0,IF(E36=E35,MAX(N$27:N35),MAX(N$27:N35)+1)) -> 0 | O36: =IF(E36<>"civil",0,IF(E36=E35,MAX(O$27:O35),MAX(O$27:O35)+1)) -> 0 | P36: =IF(E36<>"other",0,IF(E36=E35,MAX(P$27:P35),MAX(P$27:P35)+1)) -> 0 | Q36: 0
E37: * Post 31/3/2015 | G37: tabPCErrors | J37: =SUM(J27:J36) -> 0
B39: Eligibility based on employment at 2015 and 2012
B40: IF PS and PS or PS and CS or CS and PS or PS and PS - > Eligible
B41: Status at 2012 | C41: =CONCATENATE(K27,K28,K29,K30,K31,K32,K33,K34,K35,K36) ->  | D41: strStatus2012
B42: Status at 2015 | C42: =CONCATENATE(M27,M28,M29,M30,M31,M32,M33,M34,M35,M36) ->  | D42: strStatus2015
B43: Eligibility based on employment at 2015 and 2012 (True = Eligible) | C43: =IF(OR(strStatus2012="",strStatus2015=""),FALSE,TRUE) -> FALSE | D43: bEligEmployment
B46: If 2015 or 2012 was a break - was it eligible?
B47: if OTHER then check status, B = BREAK, QB = QualBreak
B48: Break Status at 2012, | C48: =CONCATENATE(R27,R28,R29,R30,R31,R32,R33,R35,R34,R36) ->  | D48: strBreakStatus2012 | F48: =IF(strBreakStatus2012="B","Non Qualifying Break",IF(strBreakStatus2012="QB","Qualifying Break",IF(strBreakStatus2012="NA","Enter Service to new start date","In Scheme"))) -> In Scheme | G48: strBreakStatusFull2012
B49: Break Status at 2015 | C49: =CONCATENATE(S27,S28,S29,S30,S31,S32,S33,S34,S35,S36) ->  | D49: strBreakBtatus2015 | F49: =IF(strBreakStatus2015="B","Non Qualifying Break",IF(strBreakStatus2015="QB","Qualifying Break",IF(strBreakStatus2015="NA","Enter Service to new start date","In Scheme"))) -> In Scheme | G49: strBreakStatusFull2015
B50: Eligibility based on employment at 2015 and 2012 (True = Eligible) | C50: =IF(bEligEmployment,IF(OR(strBreakStatus2012="B",strBreakStatus2015="B"),FALSE,TRUE)) -> FALSE | D50: bEligBreak
B51: Message | C51: =IF(bEligEmployment,IF(AND(strBreakStatus2012="B",strBreakStatus2015="B"),"Member was on a non-qualifying breaks in service on 1/4/2012 and 1/4/2015. ",IF(AND(strBreakStatus2012="B"),"Member was on a non qualifying break in service on 1/4/2012. ",IF(AND(strBreakStatus2012="B"),"Member had a non qualifying break in service on 1/4/2012. ",""))),"") ->  | D51: msgEligBreak
B55: Protection status
B56: Establish the scheme they were/would have been in at the 2012 date :
B58: If they were in civil service what scheme were they in? | C58: =CSScheme -> 0
B59: Civil service NPA | C59: =resPrevSchemeNPACS ->  | D59: iUserCivilNPA2012
B60: If they were in public service what was their NPA? | C60: =PSNPA -> 65 | D60: iUserPublicNPA2012 | F60: Assumptions
B61: If they were on a break/other what is their assumed NPA? | C61: =OSNPA -> 65 | D61: iUserOtherNPA2012
B63: NPA of scheme at 1/4/2012 | C63: =IF(strStatus2012=INDEX(tabEmploymentType,1),iUserCivilNPA2012,IF(strStatus2012=INDEX(tabEmploymentType,2),iUserPubliclNPA2012,iUserOtherNPA2012)) ->  | D63: iNPAFromSourceScheme
B66: Initial; Analysis
B67: Age at 2012 | C67: =dAge2012 -> 112.2525622
B68: More than 13.5 years to NPA @ 2012 | C68: =IF(ISNUMBER(iNPAFromSourceScheme),IF(iNPAFromSourceScheme-dAge2012>13.5,TRUE,FALSE),"") ->  | D68: bNoProtection
B69: Less than equal to 10 years to NPA @ 2012 | C69: =IF(ISNUMBER(iNPAFromSourceScheme),IF(iNPAFromSourceScheme-dAge2012<=10,TRUE,FALSE),"") ->  | D69: bFullyProtected
B70: Tapered? | C70: =IF(ISNUMBER(iNPAFromSourceScheme),IF(AND(C68=FALSE,C69=FALSE),TRUE,FALSE),"") ->  | D70: bTapered
B72: Tapered analysis (NPA = iNPAFromSourceScheme)
B73: Complete month to NPA | C73: =IF(ISNUMBER(iToNPAAt2012Years*12+iToNPAAt2012Months),iToNPAAt2012Years*12+iToNPAAt2012Months,"") ->  | D73: MonthsToNPA
B74: TE End Date To NPA iNPAFromSourceScheme | C74: =IF(MonthsToNPA>=162,DATE(2015,4,1),IF(ISNA(VLOOKUP(iToNPAAt2012Years*12+iToNPAAt2012Months,tabProtection2,FALSE,0)),DATE(2099,12,31),VLOOKUP(MonthsToNPA,tabProtection2,3,FALSE))) -> 2015-04-01 | D74: TEDateNPA
C77: =$C$1&" - Calculations" -> (Admin View) Taper/PS/CS Calculations - Calculations
B79: Rejoiner calculations
B80: Age today, double | C80: =YEARFRAC(uiDOB,dayToday+0,1) -> 122.4606344 | D80: dAgeToday
B81: Age today, integer | C81: =INT(dAgeToday) -> 122 | D81: iAgeToday
B82: NPD Based on scheme NPA | C82: =MAX(resdaySPD,DATE(YEAR(uiDOB)+65,MONTH(uiDOB),DAY(uiDOB))) -> 1964-12-31 | D82: dayNPD
B83: Age today, integer | C83: =YEARFRAC(uiDOB,dayNPD+0,1) -> 65.00273788 | D83: dAgeNPA
B84: Age @ 2012 | C84: =YEARFRAC(uiDOB,day2012_+1,1) -> 112.2525622 | D84: dAge2012
B85: Age : Complete Years@ 2012 | C85: =DATEDIF(uiDOB,day2012_+1, "Y") -> 112 | D85: iAge2012Years
B86: Age : Remainder Months @ 2012 | C86: =DATEDIF(uiDOB,day2012_+1, "YM") -> 3 | D86: iAge2012Months
B87: Age : Remainder Days @ 2012 | C87: =DATEDIF(uiDOB,day2012_+1, "MD") -> 1 | D87: iAge2012Days
B88: Age @ 2012 | C88: =CONCATENATE(iAge2012Years," years and ",iAge2012Months," months and ",iAge2012Days," days") -> 112 years and 3 months and 1 days
B90: Service to NPA Scheme NPA @ 2012 | C90: =IF(ISNUMBER(iNPAFromSourceScheme),ROUNDDOWN(SUM((iNPAFromSourceScheme*12)-DATEDIF(uiDOB,day2012_+1, "M"))/12,0),"") ->  | D90: iToNPAAt2012Years
B91: Service to NPA NPA Scheme NPA @ 2012 Remainder Months | C91: =IF(ISNUMBER(iNPAFromSourceScheme),SUM((iNPAFromSourceScheme*12)-DATEDIF(uiDOB,day2012_+1,"M"))-(iToNPAAt2012Years*12),"") ->  | D91: iToNPAAt2012Months

Sheet System Calcs,Assump,Table_hide (hidden)
C1: =strToolName& " (Admin view) joiner - Global tables, assumptions, errors" -> Joiner Tool (Admin view) joiner - Global tables, assumptions, errors
B4: Description | C4: This calculator is used to determine the which scheme and pack should be sent to a CSP joiner. This sheet is intended to be used by ADMINISTRATION staff as a backend tool. It is not expected that this will be exposed to the public users.
B5: Schemes | C5: Classic, Classic Plus, Premium, nuvos, alpha
C9: =$C$1&" - Error Checking" -> Joiner Tool (Admin view) joiner - Global tables, assumptions, errors - Error Checking
B12: Error Checking
B14: Errors | E14: Error Messages
B15: Questionnaire inputs error (FALSE=OK) | C15: =IF(uiErrorCount>0,TRUE,FALSE) -> TRUE | D15: bInputsError | E15: Check Error Messages (Red Text) | F15: errInputsError
B16: SPA errors (FALSE=OK) | C16: =OR(bSexError,'SPD Calculations_Hide'!bDOBError) -> TRUE | D16: bSPAErrors | E16: Check Sex or DOB | F16: errSPA
B17: Expiration (FALSE=OK) | C17: =IF(dayExpiry<dayToday,TRUE,FALSE) -> FALSE | D17: bExpiryError | E17: ="Tool Expired on "&TEXT(dayExpiry,"dd/mm/yyyy")&" please contact MyCSP for a new copy. " -> Tool Expired on 01/04/2023 please contact MyCSP for a new copy. | F17: _errExpiration
B18: Version (FALSE=OK) | C18: =IF(VersionNumber<>MAX(tabVersionRange),TRUE,FALSE) -> FALSE | D18: bVersionError | E18: Check Version Number. | F18: _errVersion
B20: Service table error (FALSE=OK) | C20: =IF(AND(PrevMemCS="N",PrevMemPS="N"),FALSE,IF(OR(tabPCErrors),TRUE,FALSE)) -> TRUE | D20: bServiceTableError | E20: Check Service Table | F20: errServiceTableError
B21: Overall Error (FALSE=OK) | C21: =IF(OR(bInputsError,bExpiryError,bVersionError,bSPAErrors),TRUE,FALSE) -> TRUE | D21: bOverallError
C26: =strToolName& "(Admin view) joiner - Global tables, assumptions, errors" -> Joiner Tool(Admin view) joiner - Global tables, assumptions, errors
B28: Business Assumptions
B31: Business assumptions | D31: Name | F31: Version Number | G31: 104 | H31: VersionNumber
B32: Assumed Public Service NPA | C32: 65 | D32: PSNPA | F32: Security Classification | G32: Unclassified | H32: SecurityClassification
B33: Assumed OTHER service NPA | C33: 65 | D33: OSNPA | F33: Tool Name | G33: Joiner Tool | H33: strToolName
B34: 2015 date | C34: 2015-03-31 | D34: day2015 | F34: Today's Date | G34: =TODAY() -> 2022-06-16 | H34: dayToday
B35: 2012 date | C35: 2012-03-31 | D35: day2012 | F35: Tool Expiry Date | G35: 2023-04-01 | H35: dayExpiry
C38: =strToolName& "(Admin view) joiner - Global tables, assumptions, errors" -> Joiner Tool(Admin view) joiner - Global tables, assumptions, errors
B41: Errors and other messages
B42: General
B43: ="Check error messages." -> Check error messages. | I43: _errOverall
B44: ="Error" -> Error | I44: _errOverallShort
B45: File not in correct location or filename incorrect, use correct version. | I45: _errLocation
B46: ="Security Classification: "&SecurityClassification&". " -> Security Classification: Unclassified. | I46: msgSecurityClassification
B47: ="Printed on " &TEXT(dayToday,"dd mmm yyyy")&". " -> Printed on 16 Jun 2022. | I47: msgPrint
B48: ="Version number : "&(TEXT(VersionNumber,"0"))&". " -> Version number : 104. | I48: msgVersionNumber
B49: PDF saved to : TBC | I49: msgPDFSaveLocation
B50: ="Filename : "&LEFT(CELL("filename",strToolName),FIND("]",CELL("filename",strToolName))-1) -> Filename : C:\Users\roweg\AppData\Local\Microsoft\Windows\INetCache\Content.Outlook\Q0ID2JYB\[joiner-tool_april-2022.xlsm | I50: msgFileName
B51: ="Tool expires on "&TEXT(dayExpiry,"dd/mm/yyyy")&". " -> Tool expires on 01/04/2023. | I51: msgExpiration
B52: ="Security Classification: "&SecurityClassification&". " -> Security Classification: Unclassified. | I52: msgSecurityClassification
B53: ="" &TEXT(NOW(),"hh:mm, dd mmm yyyy ")&". " -> 08:08, 16 Jun 2022 . | I53: msgPrint
B54: PDF saved to : TBC | I54: msgPDFSaveLocation
B55: ="Not Found : Carry on or check error messages" -> Not Found : Carry on or check error messages | I55: errNotFound
B56: ="Check inputs" -> Check inputs | I56: errCheckInputs
B57: Not all paths are unique | I57: errServiceGT45
C61: =strToolName&" - Tables" -> Joiner Tool - Tables
B64: Tables used in calculations/sheets
D65: tabSchemeList, tabNPA | G65: tabPensionArrangement
B66: tabYesNo | D66: Scheme List | E66: NPA | G66: Pension Arrangement
B67: Yes/No | G67: Civil Service
B68: Yes | D68: PCSPS (left before October 2002) | E68: 60 | G68: By Analogy
B69: No | D69: classic | E69: 60
D70: premium | E70: 60
B71: tabSex | D71: classic plus | E71: 60
B72: Male/Female | D72: partnership (joined before 30 July 07) | E72: 65
B73: Male | D73: nuvos | E73: 65 | G73: tabEmploymentType
B74: Female | D74: partnership (joined after 29 July 07) | E74: 65 | G74: Employment type
D75: =IF(StartDate<day2015_+1,"","alpha") ->  | E75: State Pension Age | G75: =IF(PrevMemCS="Y","Civil","") -> 
D76: By-Analogy Scheme | E76: NA | G76: =IF(PrevMemPS="Y","Public","") -> 
G77: Other
B81: Taper Data
B82: tabProtection, tabProtection2
B83: Years before NPA at 1st April 2012 | C83: Months | D83: Complete Months | E83: Months of Protection | F83: Protection End Date
B84: 10 | C84: 1 | D84: =B84*12+C84 -> 121 | E84: 82 | F84: 2022-02-01
B85: 10 | C85: 2 | D85: 122 | E85: 80 | F85: 2021-12-01
B86: 10 | C86: 3 | D86: 123 | E86: 78 | F86: 2021-10-01
B87: 10 | C87: 4 | D87: 124 | E87: 76 | F87: 2021-08-01
B88: 10 | C88: 5 | D88: 125 | E88: 74 | F88: 2021-06-01
B89: 10 | C89: 6 | D89: 126 | E89: 72 | F89: 2021-04-01
B90: 10 | C90: 7 | D90: 127 | E90: 70 | F90: 2021-02-01
B91: 10 | C91: 8 | D91: 128 | E91: 68 | F91: 2020-12-01
B92: 10 | C92: 9 | D92: 129 | E92: 66 | F92: 2020-10-01
B93: 10 | C93: 10 | D93: 130 | E93: 64 | F93: 2020-08-01
B94: 10 | C94: 11 | D94: 131 | E94: 62 | F94: 2020-06-01
B95: 11 | C95: 0 | D95: 132 | E95: 60 | F95: 2020-04-01
B96: 11 | C96: 1 | D96: 133 | E96: 58 | F96: 2020-02-01
B97: 11 | C97: 2 | D97: 134 | E97: 56 | F97: 2019-12-01
B98: 11 | C98: 3 | D98: 135 | E98: 54 | F98: 2019-10-01
B99: 11 | C99: 4 | D99: 136 | E99: 52 | F99: 2019-08-01
B100: 11 | C100: 5 | D100: 137 | E100: 50 | F100: 2019-06-01
B101: 11 | C101: 6 | D101: 138 | E101: 48 | F101: 2019-04-01
B102: 11 | C102: 7 | D102: 139 | E102: 46 | F102: 2019-02-01
B103: 11 | C103: 8 | D103: 140 | E103: 44 | F103: 2018-12-01
B104: 11 | C104: 9 | D104: 141 | E104: 42 | F104: 2018-10-01
B105: 11 | C105: 10 | D105: 142 | E105: 40 | F105: 2018-08-01
B106: 11 | C106: 11 | D106: 143 | E106: 38 | F106: 2018-06-01
B107: 12 | C107: 0 | D107: 144 | E107: 36 | F107: 2018-04-01
B108: 12 | C108: 1 | D108: 145 | E108: 34 | F108: 2018-02-01
B109: 12 | C109: 2 | D109: 146 | E109: 32 | F109: 2017-12-01
B110: 12 | C110: 3 | D110: 147 | E110: 30 | F110: 2017-10-01
B111: 12 | C111: 4 | D111: 148 | E111: 28 | F111: 2017-08-01
B112: 12 | C112: 5 | D112: 149 | E112: 26 | F112: 2017-06-01
B113: 12 | C113: 6 | D113: 150 | E113: 24 | F113: 2017-04-01
B114: 12 | C114: 7 | D114: 151 | E114: 22 | F114: 2017-02-01
B115: 12 | C115: 8 | D115: 152 | E115: 20 | F115: 2016-12-01
B116: 12 | C116: 9 | D116: 153 | E116: 18 | F116: 2016-10-01
B117: 12 | C117: 10 | D117: 154 | E117: 16 | F117: 2016-08-01
B118: 12 | C118: 11 | D118: 155 | E118: 14 | F118: 2016-06-01
B119: 13 | C119: 0 | D119: 156 | E119: 12 | F119: 2016-04-01
B120: 13 | C120: 1 | D120: 157 | E120: 10 | F120: 2016-02-01
B121: 13 | C121: 2 | D121: 158 | E121: 8 | F121: 2015-12-01
B122: 13 | C122: 3 | D122: 159 | E122: 6 | F122: 2015-10-01
B123: 13 | C123: 4 | D123: 160 | E123: 4 | F123: 2015-08-01
B124: 13 | C124: 5 | D124: 161 | E124: 2 | F124: 2015-06-01
B125: 13 | C125: 6 | D125: 162 | E125: 0 | F125: 2015-04-01

Sheet Cover Sheet_hide (hidden)
B2: MyCSP SCU Pension Questionnaire and Joiner Tool Name : Joiner.xlsm
B11: =msgSecurityClassification -> Security Classification: Unclassified.
B14: Revision History
B15: Version | C15: Name of file | D15: Previous Version | E15: Date | F15: Author | G15: Team | H15: Description | I15: Reviewed By, Name | J15: Review Date | K15: Review Comments and sign off
B16: 0.1 | C16: MYCSP | D16: MYCSP | E16: MYCSP | F16: MYCSP | G16: MYCSP | H16: Version History V1.0.4 18022015.docx | I16: MYCSP | J16: MYCSP
B17: 0.14 | C17: MYCSP | D17: MYCSP | E17: MYCSP | F17: MYCSP | G17: MYCSP | H17: Version History V1.0.4 18022015.docx | I17: MYCSP | J17: MYCSP
B18: 0.55 | C18: MYCSP | D18: MYCSP | E18: MYCSP | F18: MYCSP | G18: MYCSP | H18: Version History V1.0.4 18022015.docx | I18: MYCSP | J18: MYCSP
B19: 0.63 | C19: MYCSP | D19: MYCSP | E19: MYCSP | F19: MYCSP | G19: MYCSP | H19: Version History V1.0.4 18022015.docx | I19: MYCSP | J19: MYCSP
B20: 0.68 | C20: MYCSP | D20: MYCSP | E20: MYCSP | F20: MYCSP | G20: MYCSP | H20: Version History V1.0.4 18022015.docx | I20: MYCSP | J20: MYCSP
B21: 0.76 | C21: MYCSP | D21: MYCSP | E21: MYCSP | F21: MYCSP | G21: MYCSP | H21: Version History V1.0.4 18022015.docx | I21: MYCSP | J21: MYCSP
B22: 0.77 | C22: MYCSP | D22: MYCSP | E22: MYCSP | F22: MYCSP | G22: MYCSP | H22: Version History V1.0.4 18022015.docx | I22: MYCSP | J22: MYCSP
B23: 0.82 | C23: MYCSP | D23: MYCSP | E23: MYCSP | F23: MYCSP | G23: MYCSP | H23: Version History V1.0.4 18022015.docx | I23: MYCSP | J23: MYCSP
B24: 1 | C24: MYCSP | D24: MYCSP | E24: MYCSP | F24: MYCSP | G24: MYCSP | H24: Version History V1.0.4 18022015.docx | I24: MYCSP | J24: MYCSP
C25: MYCSP | D25: MYCSP | E25: MYCSP | F25: MYCSP | G25: MYCSP | H25: Version History V1.0.4 18022015.docx | I25: MYCSP | J25: MYCSP
B26: 1 | C26: MYCSP | D26: MYCSP | E26: MYCSP | F26: MYCSP | G26: MYCSP | H26: Version History V1.0.4 18022015.docx | I26: MYCSP | J26: MYCSP
B27: 103 | C27: MYCSP | D27: MYCSP | E27: MYCSP | F27: MYCSP | G27: MYCSP | H27: Version History V1.0.4 18022015.docx | I27: MYCSP | J27: MYCSP
B28: 104 | C28: MYCSP | D28: MYCSP | E28: MYCSP | F28: MYCSP | G28: MYCSP | H28: Version History V1.0.4 18022015.docx | I28: MYCSP | J28: MYCSP

Sheet Email Templates (hidden)
A1: Premium | C1: Alpha
A2: Congratulations on your recent appointment within the Civil Service. A career in the Civil Service offers you a range of opportunities and benefits, including membership in the Civil Service pension scheme. I’m pleased to inform you that you’re eligible to join either: • the premium scheme; or • the partnership scheme. What to do next 1. You have been automatically enrolled into the premium pension scheme however you have a choice in which scheme you want to join. To help you decide, please read premium or partnership: an overview: https://tinyurl.com/ydkaadna. 2. Let <INSERT RECRUITMENT CONTACT> know by completing and returning a Pension Choices form: https://tinyurl.com/52srnjtc. Important: if you join premium, your partner may be eligible to receive a partner’s pension in the event of your death. It isn’t mandatory, but you can provide your partner’s details by completing a Partner Details form: https://tinyurl.com/cyh2uwu8 which will help Civil Service Pensions to determine your partner’s eligibility. 3. You may be able to transfer pension benefits into your Civil Service pension. For more information, email Civil Service Pensions at newjoiners@mycsp.co.uk. Kind regards | B2: Congratulations on your recent appointment within the Civil Service. A career in the Civil Service offers you a range of opportunities and benefits, including membership in the Civil Service pension scheme. I’m pleased to inform you that you’re eligible to join either: • the nuvos scheme; or • the partnership scheme. What to do next 1. You have been automatically enrolled into the nuvos pension scheme however you have a choice in which scheme you want to join. To help you decide, please read nuvos or partnership: an overview: https://tinyurl.com/3evuxtjm. 2. Let <INSERT RECRUITMENT CONTACT> know by completing and returning a Pension Choices form: https://tinyurl.com/2du792p6. Important: if you join nuvos, your partner may be eligible to receive a partner’s pension in the event of your death. It isn’t mandatory, but you can provide your partner’s details by completing a Partner Details form: https://tinyurl.com/cyh2uwu8 which will help Civil Service Pensions to determine your partner’s eligibility. 3. You may be able to transfer (previously built up) pension benefits into your Civil Service pension. For more information, please email Civil Service Pensions at newjoiners@mycsp.co.uk. Kind regards | C2: Congratulations on your recent appointment within the Civil Service. A career in the Civil Service offers you a range of opportunities and benefits, including membership in the Civil Service pension scheme. I’m pleased to inform you that you’re eligible to join either: • the alpha scheme; or • the partnership scheme. What to do next: 1. You have been automatically enrolled into the alpha pension scheme however you have a choice in which scheme you want to join. To help you decide, please read alpha or partnership: an overview: https://www.civilservicepensionscheme.org.uk/joining-the-pension-scheme/alpha-or-partnership/. 2. Let <INSERT RECRUITMENT CONTACT> know by completing and returning a Pension Choices form: https://www.civilservicepensionscheme.org.uk/media/g4ffzir1/new-starter_alpha-june-2021-25062021.pdf. Important: if you join alpha, your partner may be eligible to receive a partner’s pension in the event of your death. It isn’t mandatory, but you can provide your partner’s details by completing a Partner Details form: https://www.civilservicepensionscheme.org.uk/media/fxwiou0k/partner-details-form-june-2018.pdf which will help Civil Service Pensions to determine your partner’s eligibility. 3. You may be able to transfer (previously built up) pension benefits into your Civil Service pension. A transfer-in application form can be found here: https://www.civilservicepensionscheme.org.uk/media/zgwnvndg/transfer-in-application-form.pdf Kind regards | H2: Dear test, Congratulations on your recent appointment within the Civil Service. A career in the Civil Service offers you a range of opportunities and benefits, including membership in the Civil Service pension scheme. I’m pleased to inform you that you’re eligible to join either: • the alpha scheme; or • the partnership scheme. What to do next: 1. You have been automatically enrolled into the alpha pension scheme however you have a choice in which scheme you want to join. To help you decide, please read alpha or partnership: an overview: https://tinyurl.com/4342akey. 2. Let <INSERT RECRUITMENT CONTACT> know by completing and returning a Pension Choices form: https://tinyurl.com/29nmbk5x. Important: if you join alpha, your partner may be eligible to receive a partner’s pension in the event of your death. It isn’t mandatory, but you can provide your partner’s details by completing a Partner Details form: https://tinyurl.com/cyh2uwu8 which will help Civil Service Pensions to determine your partner’s eligibility. 3. You may be able to transfer (previously built up) pension benefits into your Civil Service pension. For more information, please email Civil Service Pensions at newjoiners@mycsp.co.uk. Kind regards | P2: Congratulations on your recent appointment. A career in the Civil Service offers you a range of opportunities and benefits, including access to the Civil Service pension scheme. Therefore, I’m pleased to inform you that you are eligible to join either of the following schemes: - premium; or - partnership What to do next: 1. Choose which scheme to join. To help you decide, please read Premium or Partnership: An Overview, found here: http://mycsp.co.uk/test. 2. Inform Civil Service Pensions of your choice by completing and returning the Pension Choices form in your New Joiner Pack (attached). Important: if you join the premium scheme you can nominate your partner to receive a partner’s pension in the event of your death. To do this, complete and return the Partner Details form (attached). 3. Transfer a pension from previous employment. If you’ve previously worked for an employer covered by the Civil Service pension arrangements, you may be able to transfer in a pension. For more information email Civil Service Pensions at contactcentre@mycsp.co.uk Kind regards
